{"text_format":"1","workbook":"xlsx","n_sheets":10,"sheets":["転記用FMT","応募書類一覧","様式１","様式２","様式３","様式４","様式５","様式６","様式７","変更内容"],"not_rendered":{"charts":0,"images":0,"macros":0,"external_links":0,"defined_names":12,"comments":0,"pivot_tables":0},"unopened":[],"bounds":{"document_bytes":16777216,"sheet_cells":100000,"rows_first":2000,"rows_last":500,"rows_between":2000,"halvings":0,"cell_chars":16384,"cell_head_chars":4096},"cells_cut":0,"cells_raw":0,"read":"whole","date_system":"1900"}

{"sheet":"転記用FMT","index":0,"n_rows":223,"n_cols":231,"rows_kept":223,"cut":false,"hidden":true,"merged":[]}
["No","項目\n（様式_参照セル）","項目","内容",null,null,null,null,{"$f":"TRANSPOSE(A1:D223)","v":"No"},1,2,3,4,5,6,7,8,9,10,11,12,13,14,15,16,17,18,19,20,21,22,23,24,25,26,27,28,29,30,31,32,33,34,35,36,37,38,39,40,41,42,43,44,45,46,47,48,49,50,51,52,53,54,55,56,57,58,59,60,61,62,63,64,65,66,67,68,69,70,71,72,73,74,75,76,77,78,79,80,81,82,83,84,85,86,87,88,89,90,91,92,93,94,95,96,97,98,99,100,101,102,103,104,105,106,107,108,109,110,111,112,113,114,115,116,117,118,119,120,121,122,123,124,125,126,127,128,129,130,131,132,133,134,135,136,137,138,139,140,141,142,143,144,145,146,147,148,149,150,151,152,153,154,155,156,157,158,159,160,161,162,163,164,165,166,167,168,169,170,171,172,173,174,175,176,177,178,179,180,181,182,183,184,185,186,187,188,189,190,191,192,193,194,195,196,197,198,199,200,201,202,203,204,205,206,207,208,209,210,211,212,213,214,215,216,217,218,219,220,221,222]
[{"$f":"ROW()-1","v":1},{"$f":"様式１!BA5","v":"様式1_K5"},{"$f":"様式１!BB5","v":"年"},{"$f":"様式１!BC5","v":""},null,null,null,null,"項目\n（様式_参照セル）","様式1_K5","様式1_M5","様式1_O5","様式1_K11","様式1_K14","様式1_K17","様式1_K19","様式1_B36","様式1_B43","様式1_ラジオボタン","様式2_E7","様式2_E8","様式2_E9","様式2_E10","様式2_E11","様式2_E12","様式2_E13","様式2_E14","様式2_E15","様式2_E16","様式2_E17","様式2_E18","様式2_E19","様式2_E20","様式2_E21","様式2_E22","様式2_E23","様式2_E24","様式３_A9","様式３_C11","様式３_C12","様式３_C13","様式３_C14","様式３_C15","様式３_C16","様式３_C17","様式３_C18","様式３_C19","様式３_C21","様式３_C22","様式３_C23","様式３_C24","様式３_C25","様式３_C26","様式３_C27","様式３_C28","様式３_I21","様式３_I22","様式３_I23","様式３_I24","様式３_I25","様式３_I26","様式３_I27","様式３_I28","様式３_O21","様式３_O22","様式３_O23","様式３_O24","様式３_O25","様式３_O26","様式３_O27","様式３_O28","様式３_C30","様式３_C31","様式３_C32","様式３_C33","様式３_C34","様式３_C35","様式３_C36","様式３_C37","様式３_I30","様式３_I31","様式３_I32","様式３_I33","様式３_I34","様式３_I35","様式３_I36","様式３_I37","様式３_O30","様式３_O31","様式３_O32","様式３_O33","様式３_O34","様式３_O35","様式３_O36","様式３_O37","様式３_C39","様式３_C40","様式３_C41","様式３_C42","様式３_C44","様式３_C45","様式３_C46","様式３_C47","様式３_C48","様式３_C49","様式３_C50","様式３_I39","様式３_I40","様式３_I41","様式３_I42","様式３_I44","様式３_I45","様式３_I46","様式３_I47","様式３_I48","様式３_I49","様式３_I50","様式３_O39","様式３_O40","様式３_O41","様式３_O42","様式３_O44","様式３_O45","様式３_O46","様式３_O47","様式３_O48","様式３_O49","様式３_O50","様式３_C52","様式３_C53","様式３_C54","様式３_C55","様式３_C56","様式３_C57","様式３_C58","様式３_C59","様式３_C60","様式３_I52","様式３_I53","様式３_I54","様式３_I55","様式３_I56","様式３_I57","様式３_I58","様式３_I59","様式３_I60","様式３_O52","様式３_O53","様式３_O54","様式３_O55","様式３_O56","様式３_O57","様式３_O58","様式３_O59","様式３_O60","様式３_C62","様式３_C63","様式３_C64","様式３_C65","様式３_C66","様式３_C67","様式３_I62","様式３_I63","様式３_I64","様式３_I65","様式３_I66","様式３_I67","様式３_O62","様式３_O63","様式３_O64","様式３_O65","様式３_O66","様式３_O67","様式３_C69","様式３_C70","様式３_C71","様式３_C72","様式３_C73","様式３_C74","様式３_C75","様式３_C76","様式３_C77","様式３_C78","様式３_C79","様式３_I69","様式３_I70","様式３_I71","様式３_I72","様式３_I73","様式３_I74","様式３_I75","様式３_I76","様式３_I77","様式３_I78","様式３_I79","様式３_O69","様式３_O70","様式３_O71","様式３_O72","様式３_O73","様式３_O74","様式３_O75","様式３_O76","様式３_O77","様式３_O78","様式３_O79","様式３_C81","様式３_C82","様式３_C83","様式３_C84","様式３_C85","様式３_C86","様式３_C87","様式３_I81","様式３_I82","様式３_I83","様式３_I84","様式３_I85","様式３_I86","様式３_I87","様式３_O81","様式３_O82","様式３_O83","様式３_O84","様式３_O85","様式３_O86","様式３_O87","様式５_C9","様式５_C10","様式５_C11","様式５_C12"]
[{"$f":"ROW()-1","v":2},{"$f":"様式１!BA6","v":"様式1_M5"},{"$f":"様式１!BB6","v":"月"},{"$f":"様式１!BC6","v":""},null,null,null,null,"項目","年","月","日","住所","名称","代表者役職名","代表者名","継続融資保有状況","様式３，４，６変更有無","個人情報の取得及び利用に関する同意","ふりがな","金融機関名","法人番号(１３桁)","金融機関コード(４桁）","都道府県","市区町村","丁目・番地","拠点数(国内)","拠点数(海外)","貸出先数","貸出金残高","資本金/出資金等","自己資本比率","部署名","ふりがな\n（担当者名）","担当者名","電話番号","メールアドレス","説明資料","（１）部署名","（１）担当者数","行内に本事業内容・要件について詳細を説明","融資内容の管理","提出期限の管理","提出資料のとりまとめ・最終確認・提出・保管","受理資料の確認・保管","その他",0,"（２）部署名1","（２）担当者数1","SIIホームページ掲載の窓口への問合せに対し本事業内容・要件について詳細を説明、必要に応じて営業店への情報展開や対応依頼","本事業を検討する事業者に対し、本事業内容・要件について詳細な説明","他補助金と共にセミナーを開催、参加者に対し本事業内容・要件について詳細を説明","本事業を検討する事業者に対し、必要に応じて営業店への情報展開や対応依頼","その他",0,"（２）部署名2","（２）担当者数2","SIIホームページ掲載の窓口への問合せに対し本事業内容・要件について詳細を説明、必要に応じて営業店への情報展開や対応依頼","本事業を検討する事業者に対し、本事業内容・要件について詳細な説明","他補助金と共にセミナーを開催、参加者に対し本事業内容・要件について詳細を説明","本事業を検討する事業者に対し、必要に応じて営業店への情報展開や対応依頼","その他",0,"（２）部署名3","（２）担当者数3","SIIホームページ掲載の窓口への問合せに対し本事業内容・要件について詳細を説明、必要に応じて営業店への情報展開や対応依頼","本事業を検討する事業者に対し、本事業内容・要件について詳細な説明","他補助金と共にセミナーを開催、参加者に対し本事業内容・要件について詳細を説明","本事業を検討する事業者に対し、必要に応じて営業店への情報展開や対応依頼","その他",0,"（３）部署名1","（３）担当者数1","公募要領の要件を満たしていることの確認","省エネ効果の計算や必要書類の準備等","融資与信調査","社内決裁","その他",0,"（３）部署名2","（３）担当者数2","公募要領の要件を満たしていることの確認","省エネ効果の計算や必要書類の準備等","融資与信調査","社内決裁","その他",0,"（３）部署名3","（３）担当者数3","公募要領の要件を満たしていることの確認","省エネ効果の計算や必要書類の準備等","融資与信調査","社内決裁","その他",0,"（４）部署名1","（４）担当者数1","融資内容の確認","導入設備、省エネ効果の確認","融資計画書の作成","添付資料の準備","融資計画書に係る書類のとりまとめ","融資計画書の最終確認","融資計画書の提出","その他",0,"（４）部署名2","（４）担当者数2","融資内容の確認","導入設備、省エネ効果の確認","融資計画書の作成","添付資料の準備","融資計画書に係る書類のとりまとめ","融資計画書の最終確認","融資計画書の提出","その他",0,"（４）部署名3","（４）担当者数3","融資内容の確認","導入設備、省エネ効果の確認","融資計画書の作成","添付資料の準備","融資計画書に係る書類のとりまとめ","融資計画書の最終確認","融資計画書の提出","その他",0,"（５）部署名1","（５）担当者数1","融資内容の確認","交付申請書の作成","交付申請書に係る書類のとりまとめ","交付申請書の最終確認","交付申請書の提出","その他",0,"（５）部署名2","（５）担当者数2","融資内容の確認","交付申請書の作成","交付申請書に係る書類のとりまとめ","交付申請書の最終確認","交付申請書の提出","その他",0,"（５）部署名3","（５）担当者数3","融資内容の確認","交付申請書の作成","交付申請書に係る書類のとりまとめ","交付申請書の最終確認","交付申請書の提出","その他",0,"（６）部署名1","（６）担当者数1","営業店の資金使途確認結果の確認・管理","資金トレース（支払先への資金還流確認）","その他",0,"（６）部署名2","（６）担当者数2","営業店の資金使途確認結果の確認・管理","資金トレース（支払先への資金還流確認）","その他",0,"（６）部署名3","（６）担当者数3","営業店の資金使途確認結果の確認・管理","資金トレース（支払先への資金還流確認）","その他",0,"（７）部署名1","（７）担当者数1","融資内容の確認","実績報告書の作成","実績報告書に係る書類のとりまとめ","実績報告書の提出","利子補給金請求に係る書類の作成","利子補給金請求に係る書類のとりまとめ","利子補給金請求に係る書類の提出","その他",0,"（７）部署名2","（７）担当者数2","融資内容の確認","実績報告書の作成","実績報告書に係る書類のとりまとめ","実績報告書の提出","利子補給金請求に係る書類の作成","利子補給金請求に係る書類のとりまとめ","利子補給金請求に係る書類の提出","その他",0,"（７）部署名3","（７）担当者数3","融資内容の確認","実績報告書の作成","実績報告書に係る書類のとりまとめ","実績報告書の提出","利子補給金請求に係る書類の作成","利子補給金請求に係る書類のとりまとめ","利子補給金請求に係る書類の提出","その他",0,"（８）部署名1","（８）担当者数1","調査内容の確認","必要に応じて、営業店や事業者へ確認","調査内容の回答","その他",0,"（８）部署名2","（８）担当者数2","調査内容の確認","必要に応じて、営業店や事業者へ確認","調査内容の回答","その他",0,"（８）部署名3","（８）担当者数3","調査内容の確認","必要に応じて、営業店や事業者へ確認","調査内容の回答","その他",0,"金融機関名","担当部署","担当部署\n電話番号","金融機関ホームページＵＲＬ"]
[3,{"$f":"様式１!BA7","v":"様式1_O5"},{"$f":"様式１!BB7","v":"日"},{"$f":"様式１!BC7","v":""},null,null,null,null,"内容","","","","","","","","","","FALSE","","","","","","","","","","","","","","","","","","","","","","","","","","","","","","","","","","","","","","","","","","","","","","","","","","","","","","","","","","","","","","","","","","","","","","","","","","","","","","","","","","","","","","","","","","","","","","","","","","","","","","","","","","","","","","","","","","","","","","","","","","","","","","","","","","","","","","","","","","","","","","","","","","","","","","","","","","","","","","","","","","","","","","","","","","","","","","","","","","","","","","","","","","","","","","","","","","","","","","","","","","","","","","","","","","","",""]
[4,{"$f":"様式１!BA8","v":"様式1_K11"},{"$f":"様式１!BB8","v":"住所"},{"$f":"様式１!BC8","v":""}]
[5,{"$f":"様式１!BA9","v":"様式1_K14"},{"$f":"様式１!BB9","v":"名称"},{"$f":"様式１!BC9","v":""}]
[6,{"$f":"様式１!BA10","v":"様式1_K17"},{"$f":"様式１!BB10","v":"代表者役職名"},{"$f":"様式１!BC10","v":""}]
[7,{"$f":"様式１!BA11","v":"様式1_K19"},{"$f":"様式１!BB11","v":"代表者名"},{"$f":"様式１!BC11","v":""}]
[{"$f":"ROW()-1","v":8},{"$f":"様式１!BA12","v":"様式1_B36"},{"$f":"様式１!BB12","v":"継続融資保有状況"},{"$f":"様式１!BC12","v":""}]
[9,{"$f":"様式１!BA13","v":"様式1_B43"},{"$f":"様式１!BB13","v":"様式３，４，６変更有無"},{"$f":"様式１!BC13","v":""}]
[10,"様式1_ラジオボタン","個人情報の取得及び利用に関する同意",{"$f":"様式１!BC14","v":"FALSE"}]
[11,{"$f":"様式２!AY7","v":"様式2_E7"},{"$f":"様式２!AZ7","v":"ふりがな"},{"$f":"様式２!BA7","v":""}]
[12,{"$f":"様式２!AY8","v":"様式2_E8"},{"$f":"様式２!AZ8","v":"金融機関名"},{"$f":"様式２!BA8","v":""}]
[13,{"$f":"様式２!AY9","v":"様式2_E9"},{"$f":"様式２!AZ9","v":"法人番号(１３桁)"},{"$f":"様式２!BA9","v":""}]
[14,{"$f":"様式２!AY10","v":"様式2_E10"},{"$f":"様式２!AZ10","v":"金融機関コード(４桁）"},{"$f":"様式２!BA10","v":""}]
[15,{"$f":"様式２!AY11","v":"様式2_E11"},{"$f":"様式２!AZ11","v":"都道府県"},{"$f":"様式２!BA11","v":""}]
[16,{"$f":"様式２!AY12","v":"様式2_E12"},{"$f":"様式２!AZ12","v":"市区町村"},{"$f":"様式２!BA12","v":""}]
[17,{"$f":"様式２!AY13","v":"様式2_E13"},{"$f":"様式２!AZ13","v":"丁目・番地"},{"$f":"様式２!BA13","v":""}]
[18,{"$f":"様式２!AY14","v":"様式2_E14"},{"$f":"様式２!AZ14","v":"拠点数(国内)"},{"$f":"様式２!BA14","v":""}]
[19,{"$f":"様式２!AY15","v":"様式2_E15"},{"$f":"様式２!AZ15","v":"拠点数(海外)"},{"$f":"様式２!BA15","v":""}]
[20,{"$f":"様式２!AY16","v":"様式2_E16"},{"$f":"様式２!AZ16","v":"貸出先数"},{"$f":"様式２!BA16","v":""}]
[21,{"$f":"様式２!AY17","v":"様式2_E17"},{"$f":"様式２!AZ17","v":"貸出金残高"},{"$f":"様式２!BA17","v":""}]
[22,{"$f":"様式２!AY18","v":"様式2_E18"},{"$f":"様式２!AZ18","v":"資本金/出資金等"},{"$f":"様式２!BA18","v":""}]
[23,{"$f":"様式２!AY19","v":"様式2_E19"},{"$f":"様式２!AZ19","v":"自己資本比率"},{"$f":"様式２!BA19","v":""}]
[24,{"$f":"様式２!AY20","v":"様式2_E20"},{"$f":"様式２!AZ20","v":"部署名"},{"$f":"様式２!BA20","v":""}]
[25,{"$f":"様式２!AY21","v":"様式2_E21"},{"$f":"様式２!AZ21","v":"ふりがな\n（担当者名）"},{"$f":"様式２!BA21","v":""}]
[26,{"$f":"様式２!AY22","v":"様式2_E22"},{"$f":"様式２!AZ22","v":"担当者名"},{"$f":"様式２!BA22","v":""}]
[27,{"$f":"様式２!AY23","v":"様式2_E23"},{"$f":"様式２!AZ23","v":"電話番号"},{"$f":"様式２!BA23","v":""}]
[28,{"$f":"様式２!AY24","v":"様式2_E24"},{"$f":"様式２!AZ24","v":"メールアドレス"},{"$f":"様式２!BA24","v":""}]
[29,{"$f":"様式３!AY9","v":"様式３_A9"},{"$f":"様式３!AZ9","v":"説明資料"},{"$f":"様式３!BA9","v":""}]
[30,{"$f":"様式３!AY10","v":"様式３_C11"},{"$f":"様式３!AZ10","v":"（１）部署名"},{"$f":"様式３!BA10","v":""}]
[31,{"$f":"様式３!AY11","v":"様式３_C12"},{"$f":"様式３!AZ11","v":"（１）担当者数"},{"$f":"様式３!BA11","v":""}]
[32,{"$f":"様式３!AY12","v":"様式３_C13"},{"$f":"様式３!AZ12","v":"行内に本事業内容・要件について詳細を説明"},{"$f":"様式３!BA12","v":""}]
[33,{"$f":"様式３!AY13","v":"様式３_C14"},{"$f":"様式３!AZ13","v":"融資内容の管理"},{"$f":"様式３!BA13","v":""}]
[34,{"$f":"様式３!AY15","v":"様式３_C15"},{"$f":"様式３!AZ15","v":"提出期限の管理"},{"$f":"様式３!BA15","v":""}]
[35,{"$f":"様式３!AY16","v":"様式３_C16"},{"$f":"様式３!AZ16","v":"提出資料のとりまとめ・最終確認・提出・保管"},{"$f":"様式３!BA16","v":""}]
[36,{"$f":"様式３!AY17","v":"様式３_C17"},{"$f":"様式３!AZ17","v":"受理資料の確認・保管"},{"$f":"様式３!BA17","v":""}]
[37,{"$f":"様式３!AY18","v":"様式３_C18"},{"$f":"様式３!AZ18","v":"その他"},{"$f":"様式３!BA18","v":""}]
[38,{"$f":"様式３!AY19","v":"様式３_C19"},{"$f":"様式３!AZ19","v":0},{"$f":"様式３!BA19","v":""}]
[39,{"$f":"様式３!AY20","v":"様式３_C21"},{"$f":"様式３!AZ20","v":"（２）部署名1"},{"$f":"様式３!BA20","v":""}]
[40,{"$f":"様式３!AY21","v":"様式３_C22"},{"$f":"様式３!AZ21","v":"（２）担当者数1"},{"$f":"様式３!BA21","v":""}]
[41,{"$f":"様式３!AY22","v":"様式３_C23"},{"$f":"様式３!AZ22","v":"SIIホームページ掲載の窓口への問合せに対し本事業内容・要件について詳細を説明、必要に応じて営業店への情報展開や対応依頼"},{"$f":"様式３!BA22","v":""}]
[42,{"$f":"様式３!AY23","v":"様式３_C24"},{"$f":"様式３!AZ23","v":"本事業を検討する事業者に対し、本事業内容・要件について詳細な説明"},{"$f":"様式３!BA23","v":""}]
[43,{"$f":"様式３!AY24","v":"様式３_C25"},{"$f":"様式３!AZ24","v":"他補助金と共にセミナーを開催、参加者に対し本事業内容・要件について詳細を説明"},{"$f":"様式３!BA24","v":""}]
[44,{"$f":"様式３!AY25","v":"様式３_C26"},{"$f":"様式３!AZ25","v":"本事業を検討する事業者に対し、必要に応じて営業店への情報展開や対応依頼"},{"$f":"様式３!BA25","v":""}]
[45,{"$f":"様式３!AY26","v":"様式３_C27"},{"$f":"様式３!AZ26","v":"その他"},{"$f":"様式３!BA26","v":""}]
[46,{"$f":"様式３!AY27","v":"様式３_C28"},{"$f":"様式３!AZ27","v":0},{"$f":"様式３!BA27","v":""}]
[47,{"$f":"様式３!AY28","v":"様式３_I21"},{"$f":"様式３!AZ28","v":"（２）部署名2"},{"$f":"様式３!BA28","v":""}]
[48,{"$f":"様式３!AY29","v":"様式３_I22"},{"$f":"様式３!AZ29","v":"（２）担当者数2"},{"$f":"様式３!BA29","v":""}]
[49,{"$f":"様式３!AY30","v":"様式３_I23"},{"$f":"様式３!AZ30","v":"SIIホームページ掲載の窓口への問合せに対し本事業内容・要件について詳細を説明、必要に応じて営業店への情報展開や対応依頼"},{"$f":"様式３!BA30","v":""}]
[50,{"$f":"様式３!AY31","v":"様式３_I24"},{"$f":"様式３!AZ31","v":"本事業を検討する事業者に対し、本事業内容・要件について詳細な説明"},{"$f":"様式３!BA31","v":""}]
[51,{"$f":"様式３!AY32","v":"様式３_I25"},{"$f":"様式３!AZ32","v":"他補助金と共にセミナーを開催、参加者に対し本事業内容・要件について詳細を説明"},{"$f":"様式３!BA32","v":""}]
[52,{"$f":"様式３!AY33","v":"様式３_I26"},{"$f":"様式３!AZ33","v":"本事業を検討する事業者に対し、必要に応じて営業店への情報展開や対応依頼"},{"$f":"様式３!BA33","v":""}]
[53,{"$f":"様式３!AY34","v":"様式３_I27"},{"$f":"様式３!AZ34","v":"その他"},{"$f":"様式３!BA34","v":""}]
[54,{"$f":"様式３!AY35","v":"様式３_I28"},{"$f":"様式３!AZ35","v":0},{"$f":"様式３!BA35","v":""}]
[55,{"$f":"様式３!AY36","v":"様式３_O21"},{"$f":"様式３!AZ36","v":"（２）部署名3"},{"$f":"様式３!BA36","v":""}]
[56,{"$f":"様式３!AY37","v":"様式３_O22"},{"$f":"様式３!AZ37","v":"（２）担当者数3"},{"$f":"様式３!BA37","v":""}]
[57,{"$f":"様式３!AY38","v":"様式３_O23"},{"$f":"様式３!AZ38","v":"SIIホームページ掲載の窓口への問合せに対し本事業内容・要件について詳細を説明、必要に応じて営業店への情報展開や対応依頼"},{"$f":"様式３!BA38","v":""}]
[58,{"$f":"様式３!AY39","v":"様式３_O24"},{"$f":"様式３!AZ39","v":"本事業を検討する事業者に対し、本事業内容・要件について詳細な説明"},{"$f":"様式３!BA39","v":""}]
[59,{"$f":"様式３!AY40","v":"様式３_O25"},{"$f":"様式３!AZ40","v":"他補助金と共にセミナーを開催、参加者に対し本事業内容・要件について詳細を説明"},{"$f":"様式３!BA40","v":""}]
[60,{"$f":"様式３!AY41","v":"様式３_O26"},{"$f":"様式３!AZ41","v":"本事業を検討する事業者に対し、必要に応じて営業店への情報展開や対応依頼"},{"$f":"様式３!BA41","v":""}]
[61,{"$f":"様式３!AY42","v":"様式３_O27"},{"$f":"様式３!AZ42","v":"その他"},{"$f":"様式３!BA42","v":""}]
[62,{"$f":"様式３!AY43","v":"様式３_O28"},{"$f":"様式３!AZ43","v":0},{"$f":"様式３!BA43","v":""}]
[63,{"$f":"様式３!AY44","v":"様式３_C30"},{"$f":"様式３!AZ44","v":"（３）部署名1"},{"$f":"様式３!BA44","v":""}]
[64,{"$f":"様式３!AY45","v":"様式３_C31"},{"$f":"様式３!AZ45","v":"（３）担当者数1"},{"$f":"様式３!BA45","v":""}]
[{"$f":"ROW()-1","v":65},{"$f":"様式３!AY46","v":"様式３_C32"},{"$f":"様式３!AZ46","v":"公募要領の要件を満たしていることの確認"},{"$f":"様式３!BA46","v":""}]
[66,{"$f":"様式３!AY47","v":"様式３_C33"},{"$f":"様式３!AZ47","v":"省エネ効果の計算や必要書類の準備等"},{"$f":"様式３!BA47","v":""}]
[67,{"$f":"様式３!AY48","v":"様式３_C34"},{"$f":"様式３!AZ48","v":"融資与信調査"},{"$f":"様式３!BA48","v":""}]
[68,{"$f":"様式３!AY49","v":"様式３_C35"},{"$f":"様式３!AZ49","v":"社内決裁"},{"$f":"様式３!BA49","v":""}]
[69,{"$f":"様式３!AY50","v":"様式３_C36"},{"$f":"様式３!AZ50","v":"その他"},{"$f":"様式３!BA50","v":""}]
[70,{"$f":"様式３!AY51","v":"様式３_C37"},{"$f":"様式３!AZ51","v":0},{"$f":"様式３!BA51","v":""}]
[71,{"$f":"様式３!AY52","v":"様式３_I30"},{"$f":"様式３!AZ52","v":"（３）部署名2"},{"$f":"様式３!BA52","v":""}]
[72,{"$f":"様式３!AY53","v":"様式３_I31"},{"$f":"様式３!AZ53","v":"（３）担当者数2"},{"$f":"様式３!BA53","v":""}]
[73,{"$f":"様式３!AY54","v":"様式３_I32"},{"$f":"様式３!AZ54","v":"公募要領の要件を満たしていることの確認"},{"$f":"様式３!BA54","v":""}]
[74,{"$f":"様式３!AY55","v":"様式３_I33"},{"$f":"様式３!AZ55","v":"省エネ効果の計算や必要書類の準備等"},{"$f":"様式３!BA55","v":""}]
[75,{"$f":"様式３!AY56","v":"様式３_I34"},{"$f":"様式３!AZ56","v":"融資与信調査"},{"$f":"様式３!BA56","v":""}]
[76,{"$f":"様式３!AY57","v":"様式３_I35"},{"$f":"様式３!AZ57","v":"社内決裁"},{"$f":"様式３!BA57","v":""}]
[77,{"$f":"様式３!AY58","v":"様式３_I36"},{"$f":"様式３!AZ58","v":"その他"},{"$f":"様式３!BA58","v":""}]
[78,{"$f":"様式３!AY59","v":"様式３_I37"},{"$f":"様式３!AZ59","v":0},{"$f":"様式３!BA59","v":""}]
[79,{"$f":"様式３!AY60","v":"様式３_O30"},{"$f":"様式３!AZ60","v":"（３）部署名3"},{"$f":"様式３!BA60","v":""}]
[80,{"$f":"様式３!AY61","v":"様式３_O31"},{"$f":"様式３!AZ61","v":"（３）担当者数3"},{"$f":"様式３!BA61","v":""}]
[81,{"$f":"様式３!AY62","v":"様式３_O32"},{"$f":"様式３!AZ62","v":"公募要領の要件を満たしていることの確認"},{"$f":"様式３!BA62","v":""}]
[82,{"$f":"様式３!AY63","v":"様式３_O33"},{"$f":"様式３!AZ63","v":"省エネ効果の計算や必要書類の準備等"},{"$f":"様式３!BA63","v":""}]
[83,{"$f":"様式３!AY64","v":"様式３_O34"},{"$f":"様式３!AZ64","v":"融資与信調査"},{"$f":"様式３!BA64","v":""}]
[84,{"$f":"様式３!AY65","v":"様式３_O35"},{"$f":"様式３!AZ65","v":"社内決裁"},{"$f":"様式３!BA65","v":""}]
[85,{"$f":"様式３!AY66","v":"様式３_O36"},{"$f":"様式３!AZ66","v":"その他"},{"$f":"様式３!BA66","v":""}]
[86,{"$f":"様式３!AY67","v":"様式３_O37"},{"$f":"様式３!AZ67","v":0},{"$f":"様式３!BA67","v":""}]
[87,{"$f":"様式３!AY68","v":"様式３_C39"},{"$f":"様式３!AZ68","v":"（４）部署名1"},{"$f":"様式３!BA68","v":""}]
[88,{"$f":"様式３!AY69","v":"様式３_C40"},{"$f":"様式３!AZ69","v":"（４）担当者数1"},{"$f":"様式３!BA69","v":""}]
[89,{"$f":"様式３!AY70","v":"様式３_C41"},{"$f":"様式３!AZ70","v":"融資内容の確認"},{"$f":"様式３!BA70","v":""}]
[90,{"$f":"様式３!AY71","v":"様式３_C42"},{"$f":"様式３!AZ71","v":"導入設備、省エネ効果の確認"},{"$f":"様式３!BA71","v":""}]
[91,{"$f":"様式３!AY72","v":"様式３_C44"},{"$f":"様式３!AZ72","v":"融資計画書の作成"},{"$f":"様式３!BA72","v":""}]
[92,{"$f":"様式３!AY73","v":"様式３_C45"},{"$f":"様式３!AZ73","v":"添付資料の準備"},{"$f":"様式３!BA73","v":""}]
[93,{"$f":"様式３!AY74","v":"様式３_C46"},{"$f":"様式３!AZ74","v":"融資計画書に係る書類のとりまとめ"},{"$f":"様式３!BA74","v":""}]
[94,{"$f":"様式３!AY75","v":"様式３_C47"},{"$f":"様式３!AZ75","v":"融資計画書の最終確認"},{"$f":"様式３!BA75","v":""}]
[95,{"$f":"様式３!AY76","v":"様式３_C48"},{"$f":"様式３!AZ76","v":"融資計画書の提出"},{"$f":"様式３!BA76","v":""}]
[96,{"$f":"様式３!AY77","v":"様式３_C49"},{"$f":"様式３!AZ77","v":"その他"},{"$f":"様式３!BA77","v":""}]
[97,{"$f":"様式３!AY78","v":"様式３_C50"},{"$f":"様式３!AZ78","v":0},{"$f":"様式３!BA78","v":""}]
[98,{"$f":"様式３!AY79","v":"様式３_I39"},{"$f":"様式３!AZ79","v":"（４）部署名2"},{"$f":"様式３!BA79","v":""}]
[99,{"$f":"様式３!AY80","v":"様式３_I40"},{"$f":"様式３!AZ80","v":"（４）担当者数2"},{"$f":"様式３!BA80","v":""}]
[100,{"$f":"様式３!AY81","v":"様式３_I41"},{"$f":"様式３!AZ81","v":"融資内容の確認"},{"$f":"様式３!BA81","v":""}]
[101,{"$f":"様式３!AY82","v":"様式３_I42"},{"$f":"様式３!AZ82","v":"導入設備、省エネ効果の確認"},{"$f":"様式３!BA82","v":""}]
[102,{"$f":"様式３!AY83","v":"様式３_I44"},{"$f":"様式３!AZ83","v":"融資計画書の作成"},{"$f":"様式３!BA83","v":""}]
[103,{"$f":"様式３!AY84","v":"様式３_I45"},{"$f":"様式３!AZ84","v":"添付資料の準備"},{"$f":"様式３!BA84","v":""}]
[104,{"$f":"様式３!AY85","v":"様式３_I46"},{"$f":"様式３!AZ85","v":"融資計画書に係る書類のとりまとめ"},{"$f":"様式３!BA85","v":""}]
[105,{"$f":"様式３!AY86","v":"様式３_I47"},{"$f":"様式３!AZ86","v":"融資計画書の最終確認"},{"$f":"様式３!BA86","v":""}]
[106,{"$f":"様式３!AY87","v":"様式３_I48"},{"$f":"様式３!AZ87","v":"融資計画書の提出"},{"$f":"様式３!BA87","v":""}]
[107,{"$f":"様式３!AY88","v":"様式３_I49"},{"$f":"様式３!AZ88","v":"その他"},{"$f":"様式３!BA88","v":""}]
[108,{"$f":"様式３!AY89","v":"様式３_I50"},{"$f":"様式３!AZ89","v":0},{"$f":"様式３!BA89","v":""}]
[109,{"$f":"様式３!AY90","v":"様式３_O39"},{"$f":"様式３!AZ90","v":"（４）部署名3"},{"$f":"様式３!BA90","v":""}]
[110,{"$f":"様式３!AY91","v":"様式３_O40"},{"$f":"様式３!AZ91","v":"（４）担当者数3"},{"$f":"様式３!BA91","v":""}]
[111,{"$f":"様式３!AY92","v":"様式３_O41"},{"$f":"様式３!AZ92","v":"融資内容の確認"},{"$f":"様式３!BA92","v":""}]
[112,{"$f":"様式３!AY93","v":"様式３_O42"},{"$f":"様式３!AZ93","v":"導入設備、省エネ効果の確認"},{"$f":"様式３!BA93","v":""}]
[113,{"$f":"様式３!AY94","v":"様式３_O44"},{"$f":"様式３!AZ94","v":"融資計画書の作成"},{"$f":"様式３!BA94","v":""}]
[114,{"$f":"様式３!AY95","v":"様式３_O45"},{"$f":"様式３!AZ95","v":"添付資料の準備"},{"$f":"様式３!BA95","v":""}]
[115,{"$f":"様式３!AY96","v":"様式３_O46"},{"$f":"様式３!AZ96","v":"融資計画書に係る書類のとりまとめ"},{"$f":"様式３!BA96","v":""}]
[116,{"$f":"様式３!AY97","v":"様式３_O47"},{"$f":"様式３!AZ97","v":"融資計画書の最終確認"},{"$f":"様式３!BA97","v":""}]
[117,{"$f":"様式３!AY98","v":"様式３_O48"},{"$f":"様式３!AZ98","v":"融資計画書の提出"},{"$f":"様式３!BA98","v":""}]
[118,{"$f":"様式３!AY99","v":"様式３_O49"},{"$f":"様式３!AZ99","v":"その他"},{"$f":"様式３!BA99","v":""}]
[119,{"$f":"様式３!AY100","v":"様式３_O50"},{"$f":"様式３!AZ100","v":0},{"$f":"様式３!BA100","v":""}]
[120,{"$f":"様式３!AY101","v":"様式３_C52"},{"$f":"様式３!AZ101","v":"（５）部署名1"},{"$f":"様式３!BA101","v":""}]
[121,{"$f":"様式３!AY102","v":"様式３_C53"},{"$f":"様式３!AZ102","v":"（５）担当者数1"},{"$f":"様式３!BA102","v":""}]
[122,{"$f":"様式３!AY103","v":"様式３_C54"},{"$f":"様式３!AZ103","v":"融資内容の確認"},{"$f":"様式３!BA103","v":""}]
[123,{"$f":"様式３!AY104","v":"様式３_C55"},{"$f":"様式３!AZ104","v":"交付申請書の作成"},{"$f":"様式３!BA104","v":""}]
[124,{"$f":"様式３!AY105","v":"様式３_C56"},{"$f":"様式３!AZ105","v":"交付申請書に係る書類のとりまとめ"},{"$f":"様式３!BA105","v":""}]
[125,{"$f":"様式３!AY106","v":"様式３_C57"},{"$f":"様式３!AZ106","v":"交付申請書の最終確認"},{"$f":"様式３!BA106","v":""}]
[126,{"$f":"様式３!AY107","v":"様式３_C58"},{"$f":"様式３!AZ107","v":"交付申請書の提出"},{"$f":"様式３!BA107","v":""}]
[127,{"$f":"様式３!AY108","v":"様式３_C59"},{"$f":"様式３!AZ108","v":"その他"},{"$f":"様式３!BA108","v":""}]
[128,{"$f":"様式３!AY109","v":"様式３_C60"},{"$f":"様式３!AZ109","v":0},{"$f":"様式３!BA109","v":""}]
[129,{"$f":"様式３!AY110","v":"様式３_I52"},{"$f":"様式３!AZ110","v":"（５）部署名2"},{"$f":"様式３!BA110","v":""}]
[130,{"$f":"様式３!AY111","v":"様式３_I53"},{"$f":"様式３!AZ111","v":"（５）担当者数2"},{"$f":"様式３!BA111","v":""}]
[131,{"$f":"様式３!AY112","v":"様式３_I54"},{"$f":"様式３!AZ112","v":"融資内容の確認"},{"$f":"様式３!BA112","v":""}]
[132,{"$f":"様式３!AY113","v":"様式３_I55"},{"$f":"様式３!AZ113","v":"交付申請書の作成"},{"$f":"様式３!BA113","v":""}]
[133,{"$f":"様式３!AY114","v":"様式３_I56"},{"$f":"様式３!AZ114","v":"交付申請書に係る書類のとりまとめ"},{"$f":"様式３!BA114","v":""}]
[134,{"$f":"様式３!AY115","v":"様式３_I57"},{"$f":"様式３!AZ115","v":"交付申請書の最終確認"},{"$f":"様式３!BA115","v":""}]
[135,{"$f":"様式３!AY116","v":"様式３_I58"},{"$f":"様式３!AZ116","v":"交付申請書の提出"},{"$f":"様式３!BA116","v":""}]
[136,{"$f":"様式３!AY117","v":"様式３_I59"},{"$f":"様式３!AZ117","v":"その他"},{"$f":"様式３!BA117","v":""}]
[137,{"$f":"様式３!AY118","v":"様式３_I60"},{"$f":"様式３!AZ118","v":0},{"$f":"様式３!BA118","v":""}]
[138,{"$f":"様式３!AY119","v":"様式３_O52"},{"$f":"様式３!AZ119","v":"（５）部署名3"},{"$f":"様式３!BA119","v":""}]
[139,{"$f":"様式３!AY120","v":"様式３_O53"},{"$f":"様式３!AZ120","v":"（５）担当者数3"},{"$f":"様式３!BA120","v":""}]
[140,{"$f":"様式３!AY121","v":"様式３_O54"},{"$f":"様式３!AZ121","v":"融資内容の確認"},{"$f":"様式３!BA121","v":""}]
[141,{"$f":"様式３!AY122","v":"様式３_O55"},{"$f":"様式３!AZ122","v":"交付申請書の作成"},{"$f":"様式３!BA122","v":""}]
[142,{"$f":"様式３!AY123","v":"様式３_O56"},{"$f":"様式３!AZ123","v":"交付申請書に係る書類のとりまとめ"},{"$f":"様式３!BA123","v":""}]
[143,{"$f":"様式３!AY124","v":"様式３_O57"},{"$f":"様式３!AZ124","v":"交付申請書の最終確認"},{"$f":"様式３!BA124","v":""}]
[144,{"$f":"様式３!AY125","v":"様式３_O58"},{"$f":"様式３!AZ125","v":"交付申請書の提出"},{"$f":"様式３!BA125","v":""}]
[145,{"$f":"様式３!AY126","v":"様式３_O59"},{"$f":"様式３!AZ126","v":"その他"},{"$f":"様式３!BA126","v":""}]
[146,{"$f":"様式３!AY127","v":"様式３_O60"},{"$f":"様式３!AZ127","v":0},{"$f":"様式３!BA127","v":""}]
[147,{"$f":"様式３!AY128","v":"様式３_C62"},{"$f":"様式３!AZ128","v":"（６）部署名1"},{"$f":"様式３!BA128","v":""}]
[148,{"$f":"様式３!AY129","v":"様式３_C63"},{"$f":"様式３!AZ129","v":"（６）担当者数1"},{"$f":"様式３!BA129","v":""}]
[149,{"$f":"様式３!AY130","v":"様式３_C64"},{"$f":"様式３!AZ130","v":"営業店の資金使途確認結果の確認・管理"},{"$f":"様式３!BA130","v":""}]
[150,{"$f":"様式３!AY131","v":"様式３_C65"},{"$f":"様式３!AZ131","v":"資金トレース（支払先への資金還流確認）"},{"$f":"様式３!BA131","v":""}]
[151,{"$f":"様式３!AY132","v":"様式３_C66"},{"$f":"様式３!AZ132","v":"その他"},{"$f":"様式３!BA132","v":""}]
[152,{"$f":"様式３!AY133","v":"様式３_C67"},{"$f":"様式３!AZ133","v":0},{"$f":"様式３!BA133","v":""}]
[153,{"$f":"様式３!AY134","v":"様式３_I62"},{"$f":"様式３!AZ134","v":"（６）部署名2"},{"$f":"様式３!BA134","v":""}]
[154,{"$f":"様式３!AY135","v":"様式３_I63"},{"$f":"様式３!AZ135","v":"（６）担当者数2"},{"$f":"様式３!BA135","v":""}]
[155,{"$f":"様式３!AY136","v":"様式３_I64"},{"$f":"様式３!AZ136","v":"営業店の資金使途確認結果の確認・管理"},{"$f":"様式３!BA136","v":""}]
[156,{"$f":"様式３!AY137","v":"様式３_I65"},{"$f":"様式３!AZ137","v":"資金トレース（支払先への資金還流確認）"},{"$f":"様式３!BA137","v":""}]
[157,{"$f":"様式３!AY138","v":"様式３_I66"},{"$f":"様式３!AZ138","v":"その他"},{"$f":"様式３!BA138","v":""}]
[158,{"$f":"様式３!AY139","v":"様式３_I67"},{"$f":"様式３!AZ139","v":0},{"$f":"様式３!BA139","v":""}]
[159,{"$f":"様式３!AY140","v":"様式３_O62"},{"$f":"様式３!AZ140","v":"（６）部署名3"},{"$f":"様式３!BA140","v":""}]
[160,{"$f":"様式３!AY141","v":"様式３_O63"},{"$f":"様式３!AZ141","v":"（６）担当者数3"},{"$f":"様式３!BA141","v":""}]
[161,{"$f":"様式３!AY142","v":"様式３_O64"},{"$f":"様式３!AZ142","v":"営業店の資金使途確認結果の確認・管理"},{"$f":"様式３!BA142","v":""}]
[162,{"$f":"様式３!AY143","v":"様式３_O65"},{"$f":"様式３!AZ143","v":"資金トレース（支払先への資金還流確認）"},{"$f":"様式３!BA143","v":""}]
[163,{"$f":"様式３!AY144","v":"様式３_O66"},{"$f":"様式３!AZ144","v":"その他"},{"$f":"様式３!BA144","v":""}]
[164,{"$f":"様式３!AY145","v":"様式３_O67"},{"$f":"様式３!AZ145","v":0},{"$f":"様式３!BA145","v":""}]
[165,{"$f":"様式３!AY146","v":"様式３_C69"},{"$f":"様式３!AZ146","v":"（７）部署名1"},{"$f":"様式３!BA146","v":""}]
[166,{"$f":"様式３!AY147","v":"様式３_C70"},{"$f":"様式３!AZ147","v":"（７）担当者数1"},{"$f":"様式３!BA147","v":""}]
[167,{"$f":"様式３!AY148","v":"様式３_C71"},{"$f":"様式３!AZ148","v":"融資内容の確認"},{"$f":"様式３!BA148","v":""}]
[168,{"$f":"様式３!AY149","v":"様式３_C72"},{"$f":"様式３!AZ149","v":"実績報告書の作成"},{"$f":"様式３!BA149","v":""}]
[169,{"$f":"様式３!AY150","v":"様式３_C73"},{"$f":"様式３!AZ150","v":"実績報告書に係る書類のとりまとめ"},{"$f":"様式３!BA150","v":""}]
[170,{"$f":"様式３!AY151","v":"様式３_C74"},{"$f":"様式３!AZ151","v":"実績報告書の提出"},{"$f":"様式３!BA151","v":""}]
[171,{"$f":"様式３!AY152","v":"様式３_C75"},{"$f":"様式３!AZ152","v":"利子補給金請求に係る書類の作成"},{"$f":"様式３!BA152","v":""}]
[172,{"$f":"様式３!AY153","v":"様式３_C76"},{"$f":"様式３!AZ153","v":"利子補給金請求に係る書類のとりまとめ"},{"$f":"様式３!BA153","v":""}]
[173,{"$f":"様式３!AY154","v":"様式３_C77"},{"$f":"様式３!AZ154","v":"利子補給金請求に係る書類の提出"},{"$f":"様式３!BA154","v":""}]
[174,{"$f":"様式３!AY155","v":"様式３_C78"},{"$f":"様式３!AZ155","v":"その他"},{"$f":"様式３!BA155","v":""}]
[175,{"$f":"様式３!AY156","v":"様式３_C79"},{"$f":"様式３!AZ156","v":0},{"$f":"様式３!BA156","v":""}]
[176,{"$f":"様式３!AY157","v":"様式３_I69"},{"$f":"様式３!AZ157","v":"（７）部署名2"},{"$f":"様式３!BA157","v":""}]
[177,{"$f":"様式３!AY158","v":"様式３_I70"},{"$f":"様式３!AZ158","v":"（７）担当者数2"},{"$f":"様式３!BA158","v":""}]
[178,{"$f":"様式３!AY159","v":"様式３_I71"},{"$f":"様式３!AZ159","v":"融資内容の確認"},{"$f":"様式３!BA159","v":""}]
[179,{"$f":"様式３!AY160","v":"様式３_I72"},{"$f":"様式３!AZ160","v":"実績報告書の作成"},{"$f":"様式３!BA160","v":""}]
[180,{"$f":"様式３!AY161","v":"様式３_I73"},{"$f":"様式３!AZ161","v":"実績報告書に係る書類のとりまとめ"},{"$f":"様式３!BA161","v":""}]
[181,{"$f":"様式３!AY162","v":"様式３_I74"},{"$f":"様式３!AZ162","v":"実績報告書の提出"},{"$f":"様式３!BA162","v":""}]
[182,{"$f":"様式３!AY163","v":"様式３_I75"},{"$f":"様式３!AZ163","v":"利子補給金請求に係る書類の作成"},{"$f":"様式３!BA163","v":""}]
[183,{"$f":"様式３!AY164","v":"様式３_I76"},{"$f":"様式３!AZ164","v":"利子補給金請求に係る書類のとりまとめ"},{"$f":"様式３!BA164","v":""}]
[184,{"$f":"様式３!AY165","v":"様式３_I77"},{"$f":"様式３!AZ165","v":"利子補給金請求に係る書類の提出"},{"$f":"様式３!BA165","v":""}]
[185,{"$f":"様式３!AY166","v":"様式３_I78"},{"$f":"様式３!AZ166","v":"その他"},{"$f":"様式３!BA166","v":""}]
[186,{"$f":"様式３!AY167","v":"様式３_I79"},{"$f":"様式３!AZ167","v":0},{"$f":"様式３!BA167","v":""}]
[187,{"$f":"様式３!AY168","v":"様式３_O69"},{"$f":"様式３!AZ168","v":"（７）部署名3"},{"$f":"様式３!BA168","v":""}]
[188,{"$f":"様式３!AY169","v":"様式３_O70"},{"$f":"様式３!AZ169","v":"（７）担当者数3"},{"$f":"様式３!BA169","v":""}]
[189,{"$f":"様式３!AY170","v":"様式３_O71"},{"$f":"様式３!AZ170","v":"融資内容の確認"},{"$f":"様式３!BA170","v":""}]
[190,{"$f":"様式３!AY171","v":"様式３_O72"},{"$f":"様式３!AZ171","v":"実績報告書の作成"},{"$f":"様式３!BA171","v":""}]
[191,{"$f":"様式３!AY172","v":"様式３_O73"},{"$f":"様式３!AZ172","v":"実績報告書に係る書類のとりまとめ"},{"$f":"様式３!BA172","v":""}]
[192,{"$f":"様式３!AY173","v":"様式３_O74"},{"$f":"様式３!AZ173","v":"実績報告書の提出"},{"$f":"様式３!BA173","v":""}]
[193,{"$f":"様式３!AY174","v":"様式３_O75"},{"$f":"様式３!AZ174","v":"利子補給金請求に係る書類の作成"},{"$f":"様式３!BA174","v":""}]
[194,{"$f":"様式３!AY175","v":"様式３_O76"},{"$f":"様式３!AZ175","v":"利子補給金請求に係る書類のとりまとめ"},{"$f":"様式３!BA175","v":""}]
[195,{"$f":"様式３!AY176","v":"様式３_O77"},{"$f":"様式３!AZ176","v":"利子補給金請求に係る書類の提出"},{"$f":"様式３!BA176","v":""}]
[196,{"$f":"様式３!AY177","v":"様式３_O78"},{"$f":"様式３!AZ177","v":"その他"},{"$f":"様式３!BA177","v":""}]
[197,{"$f":"様式３!AY178","v":"様式３_O79"},{"$f":"様式３!AZ178","v":0},{"$f":"様式３!BA178","v":""}]
[198,{"$f":"様式３!AY179","v":"様式３_C81"},{"$f":"様式３!AZ179","v":"（８）部署名1"},{"$f":"様式３!BA179","v":""}]
[199,{"$f":"様式３!AY180","v":"様式３_C82"},{"$f":"様式３!AZ180","v":"（８）担当者数1"},{"$f":"様式３!BA180","v":""}]
[200,{"$f":"様式３!AY181","v":"様式３_C83"},{"$f":"様式３!AZ181","v":"調査内容の確認"},{"$f":"様式３!BA181","v":""}]
[201,{"$f":"様式３!AY182","v":"様式３_C84"},{"$f":"様式３!AZ182","v":"必要に応じて、営業店や事業者へ確認"},{"$f":"様式３!BA182","v":""}]
[202,{"$f":"様式３!AY183","v":"様式３_C85"},{"$f":"様式３!AZ183","v":"調査内容の回答"},{"$f":"様式３!BA183","v":""}]
[203,{"$f":"様式３!AY184","v":"様式３_C86"},{"$f":"様式３!AZ184","v":"その他"},{"$f":"様式３!BA184","v":""}]
[204,{"$f":"様式３!AY185","v":"様式３_C87"},{"$f":"様式３!AZ185","v":0},{"$f":"様式３!BA185","v":""}]
[205,{"$f":"様式３!AY186","v":"様式３_I81"},{"$f":"様式３!AZ186","v":"（８）部署名2"},{"$f":"様式３!BA186","v":""}]
[206,{"$f":"様式３!AY187","v":"様式３_I82"},{"$f":"様式３!AZ187","v":"（８）担当者数2"},{"$f":"様式３!BA187","v":""}]
[207,{"$f":"様式３!AY188","v":"様式３_I83"},{"$f":"様式３!AZ188","v":"調査内容の確認"},{"$f":"様式３!BA188","v":""}]
[208,{"$f":"様式３!AY189","v":"様式３_I84"},{"$f":"様式３!AZ189","v":"必要に応じて、営業店や事業者へ確認"},{"$f":"様式３!BA189","v":""}]
[209,{"$f":"様式３!AY190","v":"様式３_I85"},{"$f":"様式３!AZ190","v":"調査内容の回答"},{"$f":"様式３!BA190","v":""}]
[210,{"$f":"様式３!AY191","v":"様式３_I86"},{"$f":"様式３!AZ191","v":"その他"},{"$f":"様式３!BA191","v":""}]
[211,{"$f":"様式３!AY192","v":"様式３_I87"},{"$f":"様式３!AZ192","v":0},{"$f":"様式３!BA192","v":""}]
[212,{"$f":"様式３!AY193","v":"様式３_O81"},{"$f":"様式３!AZ193","v":"（８）部署名3"},{"$f":"様式３!BA193","v":""}]
[213,{"$f":"様式３!AY194","v":"様式３_O82"},{"$f":"様式３!AZ194","v":"（８）担当者数3"},{"$f":"様式３!BA194","v":""}]
[214,{"$f":"様式３!AY195","v":"様式３_O83"},{"$f":"様式３!AZ195","v":"調査内容の確認"},{"$f":"様式３!BA195","v":""}]
[215,{"$f":"様式３!AY196","v":"様式３_O84"},{"$f":"様式３!AZ196","v":"必要に応じて、営業店や事業者へ確認"},{"$f":"様式３!BA196","v":""}]
[216,{"$f":"様式３!AY197","v":"様式３_O85"},{"$f":"様式３!AZ197","v":"調査内容の回答"},{"$f":"様式３!BA197","v":""}]
[217,{"$f":"様式３!AY198","v":"様式３_O86"},{"$f":"様式３!AZ198","v":"その他"},{"$f":"様式３!BA198","v":""}]
[218,{"$f":"様式３!AY199","v":"様式３_O87"},{"$f":"様式３!AZ199","v":0},{"$f":"様式３!BA199","v":""}]
[219,"様式５_C9","金融機関名",{"$f":"様式５!BA9","v":""}]
[{"$f":"ROW()-1","v":220},"様式５_C10","担当部署",{"$f":"様式５!BA10","v":""}]
[221,"様式５_C11","担当部署\n電話番号",{"$f":"様式５!BA11","v":""}]
[222,"様式５_C12","金融機関ホームページＵＲＬ",{"$f":"様式５!BA12","v":""}]

{"sheet":"応募書類一覧","index":1,"n_rows":19,"n_cols":7,"rows_kept":19,"cut":false,"hidden":false,"merged":[[0,0,0,6],[2,2,6,2],[12,0,13,6]]}
["指定金融機関　応募書類一覧"]
["No","応募書類","提出\n方法","必要\n書類","ファイル\n形式","ファイル名","備考"]
[1,"様式１～７","電子\nメール","●","Excel","指定金融機関の申請_金融機関コード（半角数字4桁）\n\n※ファイル名の末尾に「_（半角アンダーバー）金融機関コード（半角数字4桁）」をご入力ください。","・押印は不要です。"]
[2,"公表資料情報\n（ディスクロージャー等）",null,"●","PDF","公表資料情報（資料名）","・発行元がわかるよう公表資料の表紙と、様式入力項目が明記されているページを一つのファイルにまとめてご提出ください。\n・公表資料の該当箇所にマーカー等で印をつけてください。"]
[3,"財務諸表等　説明資料",null,"●","PDF","財務諸表等_説明資料（資料名）","・直近で発行された1年間分の決算情報が確認できる資料（貸借対照表、有価証券報告書等）を添付してください。"]
[4,"事業実施体制　説明資料",null,"〇","自由","事業実施体制_説明資料（資料名）","・様式３（２.事業実施体制）について様式以外で説明が必要な場合はご提出ください。"]
[5,"支援体制等　説明資料",null,"〇","自由","支援体制等_説明資料（資料名）","・様式４（３.支援体制等）について様式以外で説明が必要な場合はご提出ください。"]
[]
["＜応募書類の留意点＞"]
["・必要書類の「●」は提出を必須とし、「〇」は必要に応じてご提出ください。"]
["・No.1は指定様式をご使用ください。"]
["・応募書類は原則、電子メールにてご提出ください。（提出先は公募要領10ページに記載）"]
["・電子メールの件名は、必ず「令和７年度指定金融機関　応募書類_金融機関コード（半角数字4桁）」としてください。\n　（詳細は公募要領10ページに記載）"]
[]
["・電子メールの添付ファイルは指定されたファイル名で添付してください。"]
[]
[]
[]
[null,"\n"]

{"sheet":"様式１","index":2,"n_rows":53,"n_cols":55,"rows_kept":53,"cut":false,"hidden":false,"merged":[[14,8,14,9],[11,8,11,9],[17,8,17,9],[10,10,12,15],[13,10,15,15],[16,10,17,15],[10,27,12,32],[13,27,15,32],[16,27,17,31],[18,27,19,31],[23,17,23,30],[11,25,11,26],[14,25,14,26],[17,25,17,26],[18,10,19,15],[51,0,51,15],[27,0,27,15],[36,1,37,5],[27,16,27,32],[23,0,23,15],[45,30,47,30],[34,1,35,13],[49,1,50,5],[34,17,35,29],[36,17,37,21],[45,1,47,13],[45,14,47,14],[45,17,47,29],[41,17,42,21],[41,1,42,5]]}
[null,null,null,null,null,null,null,null,null,null,null,null,null,null,null,null,null,null,null,null,null,null,null,null,null,null,null,null,null,null,null,null,null,null,"<---------------------非表示範囲--------------------->"]
["（様式１）",null,null,null,null,null,null,null,null,null,null,null,null,null,null,null,null,{"$f":"A2","v":"（様式１）"},null,null,null,null,null,null,null,null,null,null,null,null,null,null,null,null,null,null,null,null,"自年度","2023-04-01"]
[null,null,null,null,null,null,null,null,null,null,null,null,null,null,null,null,null,null,null,null,null,null,null,null,null,null,null,null,null,null,null,null,null,null,null,null,null,null,"至年度","2024-03-10"]
[null,null,null,null,null,null,null,null,null,null,{"$f":"IF(AND(NOT(ISBLANK(K5)),NOT(ISBLANK(M5)),NOT(ISBLANK(O5))),\"\",\"↓年月日を入力してください\")","v":"↓年月日を入力してください"},null,null,null,null,null,null,null,null,null,null,null,null,null,null,null,null,null,null,null,null,null,null,null,null,null,"年","月","日","融資状況","変更有無","個人情報同意"]
[null,null,null,null,null,null,null,null,null,null,null,"年",null,"月",null,"日",null,null,null,null,null,null,null,null,null,null,null,2025,{"$f":"L5","v":"年"},"〇〇",{"$f":"N5","v":"月"},"〇〇",{"$f":"P5","v":"日"},null,null,null,2025,4,1,null,null,null,null,null,null,null,null,null,null,null,null,null,"様式1_K5","年",{"$f":"IF(K5=\"\",\"\",K5)","v":""}]
[null,null,null,null,null,null,null,null,null,null,null,null,null,null,null,null,null,null,null,null,null,null,null,null,null,null,null,null,null,null,null,null,null,null,null,null,null,5,2,"保有している","変更あり","同意する",null,null,null,null,null,null,null,null,null,null,"様式1_M5","月",{"$f":"IF(M5=\"\",\"\",M5)","v":""}]
["一般社団法人　環境共創イニシアチブ",null,null,null,null,null,null,null,null,null,null,null,null,null,null,null,null,{"$f":"A7","v":"一般社団法人　環境共創イニシアチブ"},null,null,null,null,null,null,null,null,null,null,null,null,null,null,null,null,null,null,null,6,3,"保有していない","変更なし",null,null,null,null,null,null,null,null,null,null,null,"様式1_O5","日",{"$f":"IF(O5=\"\",\"\",O5)","v":""}]
["代表理事　殿",null,null,null,null,null,null,null,null,null,null,null,null,null,null,null,null,{"$f":"A8","v":"代表理事　殿"},null,null,null,null,null,null,null,null,null,null,null,null,null,null,null,null,null,null,null,7,4,null,"新規応募",null,null,null,null,null,null,null,null,null,null,null,"様式1_K11","住所",{"$f":"IF(K11=\"\",\"\",K11)","v":""}]
[null,null,null,null,null,null,null,null,null,null,null,null,null,null,null,null,null,null,null,null,null,null,null,null,null,null,null,null,null,null,null,null,null,null,null,null,null,8,5,null,null,null,null,null,null,null,null,null,null,null,null,null,"様式1_K14","名称",{"$f":"IF(K14=\"\",\"\",K14)","v":""}]
[null,null,null,null,null,null,null,null,null,null,{"$f":"IF(K11=\"\",\"↓住所は都道府県からご入力ください。\",\"\")","v":"↓住所は都道府県からご入力ください。"},null,null,null,null,null,null,null,null,null,null,null,null,null,null,null,null,null,null,null,null,null,null,null,null,null,null,9,6,null,null,null,null,null,null,null,null,null,null,null,null,null,"様式1_K17","代表者役職名",{"$f":"IF(K17=\"\",\"\",K17)","v":""}]
[null,null,null,null,null,null,null,null,null,null,null,null,null,null,null,null,null,null,null,null,null,null,null,null,null,null,null,"〇〇県〇〇市〇〇町〇丁目〇番〇号",null,null,null,null,null,null,null,null,null,10,7,null,null,"様式7 ”確認済の場合”",null,null,null,null,null,null,null,null,null,null,"様式1_K19","代表者名",{"$f":"IF(K19=\"\",\"\",K19)","v":""}]
[null,null,null,null,null,null,null,null,"住　所",null,null,null,null,null,null,null,null,null,null,null,null,null,null,null,null,{"$f":"I12","v":"住　所"},null,null,null,null,null,null,null,null,null,null,null,null,8,null,null,"✓",null,null,null,null,null,null,null,null,null,null,"様式1_B36","継続融資保有状況",{"$f":"IF(B37=\"\",\"\",B37)","v":""}]
[null,null,null,null,null,null,null,null,null,null,null,null,null,null,null,null,null,null,null,null,null,null,null,null,null,null,null,null,null,null,null,null,null,null,null,null,null,null,9,null,null,null,null,null,null,null,null,null,null,null,null,null,"様式1_B43","様式３，４，６変更有無",{"$f":"IF(B42=\"\",\"\",B42)","v":""}]
[null,null,null,null,null,null,null,null,null,null,null,null,null,null,null,null,null,null,null,null,null,null,null,null,null,null,null,"株式会社〇〇銀行",null,null,null,null,null,null,null,null,null,null,10,null,null,null,null,null,null,null,null,null,null,null,null,null,"様式1_ラジオボタン","個人情報の取得及び利用に関する同意",{"$f":"AN39","v":"FALSE"}]
[null,null,null,null,null,null,"金融機関",null,"名　称",null,null,null,null,null,null,null,null,null,null,null,null,null,null,{"$f":"G15","v":"金融機関"},null,{"$f":"I15","v":"名　称"},null,null,null,null,null,null,null,null,null,null,null,null,11]
[null,null,null,null,null,null,null,null,null,null,null,null,null,null,null,null,null,null,null,null,null,null,null,null,null,null,null,null,null,null,null,null,null,null,null,null,null,null,12]
[null,null,null,null,null,null,null,null,null,null,null,null,null,null,null,null,null,null,null,null,null,null,null,null,null,null,null,"代表取締役",null,null,null,null,null,null,null,null,null,null,13]
[null,null,null,null,null,null,null,null,"代表者等名",null,null,null,null,null,null,null,null,null,null,null,null,null,null,null,null,{"$f":"I18","v":"代表者等名"},null,null,null,null,null,null,null,null,null,null,null,null,14]
[null,null,null,null,null,null,null,null,null,null,null,null,null,null,null,null,null,null,null,null,null,null,null,null,null,null,null,"〇〇　〇〇",null,null,null,null,null,null,null,null,null,null,15]
[null,null,null,null,null,null,null,null,null,null,null,null,null,null,null,null,null,null,null,null,null,null,null,null,null,null,null,null,null,null,null,null,null,null,null,null,null,null,16]
[null,null,null,null,null,null,null,null,null,null,null,null,null,null,null,null,null,null,null,null,null,null,null,null,null,null,null,null,null,null,null,null,null,null,null,null,null,null,17]
[null,null,null,null,null,null,null,null,null,null,null,null,null,null,null,null,null,null,null,null,null,null,null,null,null,null,null,null,null,null,null,null,null,null,null,null,null,null,18]
[null,null,null,null,null,null,null,null,null,null,null,null,null,null,null,null,null,null,null,null,null,null,null,null,null,null,null,null,null,null,null,null,null,null,null,null,null,null,19]
["令和７年度省エネルギー設備投資利子補給金\n指定金融機関の申請について",null,null,null,null,null,null,null,null,null,null,null,null,null,null,null,null,{"$f":"A24","v":"令和７年度省エネルギー設備投資利子補給金\n指定金融機関の申請について"},null,null,null,null,null,null,null,null,null,null,null,null,null,null,null,null,null,null,null,null,20]
[null,null,null,null,null,null,null,null,null,null,null,null,null,null,null,null,null,null,null,null,null,null,null,null,null,null,null,null,null,null,null,null,null,null,null,null,null,null,21]
[null,null,null,null,null,null,null,null,null,null,null,null,null,null,null,null,null,null,null,null,null,null,null,null,null,null,null,null,null,null,null,null,null,null,null,null,null,null,22]
[null,null,null,null,null,null,null,null,null,null,null,null,null,null,null,null,null,null,null,null,null,null,null,null,null,null,null,null,null,null,null,null,null,null,null,null,null,null,23]
["　令和７年度省エネルギー設備投資利子補給金に係る指定金融機関の公募要領に基づき、\n下記のとおり申請します。",null,null,null,null,null,null,null,null,null,null,null,null,null,null,null,{"$f":"A28","v":"　令和７年度省エネルギー設備投資利子補給金に係る指定金融機関の公募要領に基づき、\n下記のとおり申請します。"},null,null,null,null,null,null,null,null,null,null,null,null,null,null,null,null,null,null,null,null,null,24]
[null,null,null,null,null,null,null,null,null,null,null,null,null,null,null,null,null,null,null,null,null,null,null,null,null,null,null,null,null,null,null,null,null,null,null,null,null,null,25]
[null,null,null,null,null,null,null,null,"記",null,null,null,null,null,null,null,null,null,null,null,null,null,null,null,"記",null,null,null,null,null,null,null,null,null,null,null,null,null,26]
[null,null,null,null,null,null,null,null,null,null,null,null,null,null,null,null,null,null,null,null,null,null,null,null,null,null,null,null,null,null,null,null,null,null,null,null,null,null,27]
[null,null,null,null,null,null,null,null,null,null,null,null,null,null,null,null,null,null,null,null,null,null,null,null,null,null,null,null,null,null,null,null,null,null,null,null,null,null,28]
[null,{"$f":"IF(OR(B37=\"\",B42=\"\"),\"↓プルダウンにて選択してください。\",\"\")","v":"↓プルダウンにて選択してください。"},null,null,null,null,null,null,null,null,null,null,null,null,null,null,null,null,null,null,null,null,null,null,null,null,null,null,null,null,null,null,null,null,null,null,null,null,29]
["１．","今年度における、継続融資の保有状況について",null,null,null,null,null,null,null,null,null,null,null,null,null,null,"１．","今年度における、継続融資案件の保有状況",null,null,null,null,null,null,null,null,null,null,null,null,null,null,null,null,null,null,null,null,30]
[null,"※過去に本事業の利子補給金の交付を受け、令和７年度の単位期間中に残高が存する金銭消費貸借契約を締結している事業を有する場合は「保有している」を選択してください。",null,null,null,null,null,null,null,null,null,null,null,null,null,null,null,"※過去に本事業の利子補給金の交付を受け、令和７年度の単位期間中に残高が存する金銭消費貸借契約を締結している事業を有する場合は「保有している」を選択してください。",null,null,null,null,null,null,null,null,null,null,null,null,null,null,null,null,null,null,null,null,31]
[]
[null,null,null,null,null,null,null,null,null,null,null,null,null,null,null,null,null,"○○○"]
[]
[null,null,null,null,null,null,null,null,null,null,null,null,null,null,null,null,null,null,null,null,null,null,null,null,null,null,null,null,null,null,null,null,null,null,null,null,"個人情報チェック",null,null,{"$f":"IF($B50=\"同意する\",\"TRUE\",\"FALSE\")","v":"FALSE"}]
["２．","昨年度の本公募における申請情報のうち、以下の項目の変更有無について",null,null,null,null,null,null,null,null,null,null,null,null,null,null,"２．","昨年度の本公募における申請情報のうち、以下の項目の変更有無について"]
[null,"様式４（民間団体等の省エネルギー取組に対する支援体制・方法）",null,null,null,null,null,null,null,null,null,null,null,null,null,null,null,"様式４（民間団体等の省エネルギー取組に対する支援体制・方法）"]
[null,null,null,null,null,null,null,null,null,null,null,null,null,null,null,null,null,"○○○",null,null,null,null,null,null,null,null,null,null,null,null,null,null,null,null,null,null,null,{"$f":"IF(B37=$AN$6,1,IF(B37=$AN$7,0,\"\"))","v":""}]
[null,null,null,null,null,null,null,null,null,null,null,null,null,null,null,null,null,null,null,null,null,null,null,null,null,null,null,null,null,null,null,null,null,null,"保有している","変更なし",null,{"$f":"IF(B42=$AO$6,1,IF(B42=$AO$7,0,IF(B42=$AO$8,3,\"\")))","v":""}]
[null,null,null,null,null,null,null,null,null,null,null,null,null,null,null,null,null,null,null,null,null,null,null,null,null,null,null,null,null,null,null,null,null,null,null,null,null,"様式１，２，３，５，６，７を入力して提出してください。"]
["３．","個人情報の取得及び利用に関する同意",null,null,null,null,null,null,null,null,null,null,null,null,null,null,"３．","個人情報の取得及び利用に関する同意",null,null,null,null,null,null,null,null,null,null,null,null,null,null,null,null,null,null,null,"空白の項目があります。"]
[null,"当金融機関は、令和７年度省エネルギー設備投資利子補給金の実施に関わる指定金融機関公募にあたり、指定金融機関　公募要領１３ページに記載の個人情報の取得及び利用に関する項目を確認し、これについて同意します。",null,null,null,null,null,null,null,null,null,null,null,null,null,null,null,{"$f":"B46","v":"当金融機関は、令和７年度省エネルギー設備投資利子補給金の実施に関わる指定金融機関公募にあたり、指定金融機関　公募要領１３ページに記載の個人情報の取得及び利用に関する項目を確認し、これについて同意します。"}]
[]
[]
[]
[null,null,null,null,null,null,null,null,null,null,null,null,null,null,null,null,null,"○○○"]
[]
[{"$f":"IF(AND(B50=AP6,B42<>\"\",B37<>\"\"),IF(AND(AL42=1,AL43=0),AL44,IF(OR(B37=\"\",,B42=\"\"),AL44,AL53)),AL45)","v":"空白の項目があります。"}]
[null,null,null,null,null,null,null,null,null,null,null,null,null,null,null,null,null,null,null,null,null,null,null,null,null,null,null,null,null,null,null,null,null,null,null,null,null,"様式１～７を入力して提出してください。"]

{"sheet":"様式２","index":3,"n_rows":24,"n_cols":53,"rows_kept":24,"cut":false,"hidden":false,"merged":[[23,4,23,8],[13,11,16,11],[16,4,16,8],[19,12,23,13],[19,4,19,8],[21,4,21,8],[15,4,15,8],[13,4,13,8],[20,4,20,8],[22,4,22,8],[13,14,13,15],[13,16,13,20],[18,16,18,20],[13,12,18,13],[17,14,17,15],[17,16,17,20],[18,14,18,15],[15,16,15,20],[16,14,16,15],[16,16,16,20],[14,14,14,15],[14,16,14,20],[20,14,20,15],[20,16,20,20],[15,14,15,15],[19,21,23,21],[21,14,21,15],[21,16,21,20],[19,16,19,20],[22,14,22,15],[22,16,22,20],[23,16,23,20],[19,14,19,15],[23,14,23,15],[6,12,6,15],[6,16,6,20],[6,21,7,21],[7,12,7,15],[7,16,7,20],[8,12,8,15],[8,16,8,20],[9,12,9,15],[10,21,12,21],[11,14,11,15],[10,12,12,13],[10,14,10,15],[11,16,11,20],[12,14,12,15],[12,16,12,20],[10,16,10,20],[9,16,9,20],[19,0,23,1],[10,2,10,3],[10,4,10,8],[11,4,11,8],[12,4,12,8],[18,4,18,8],[15,2,15,3],[16,2,16,3],[14,4,14,8],[17,4,17,8],[21,2,21,3],[17,2,17,3],[20,2,20,3],[22,2,22,3],[23,2,23,3],[19,2,19,3],[1,3,3,9],[13,2,13,3],[14,2,14,3],[13,0,18,1],[9,0,9,3],[9,4,9,8],[12,2,12,3],[10,0,12,1],[11,2,11,3],[6,0,6,3],[7,0,7,3],[6,4,6,8],[7,4,7,8],[8,0,8,3],[8,4,8,8],[18,2,18,3]]}
[]
["（様式２）",null,null,{"$f":"IF(AND(様式１!AL42=1,様式１!AL43=0),\"　グレーアウト部分の記載は不要です。\n　なお、昨年度のご申請内容から変更がある場合は、\n　該当項目に入力するとグレーアウトが解除されます。\",\"\")","v":""},null,null,null,null,null,null,null,null,{"$f":"A2","v":"（様式２）"}]
[]
[]
["１．基本情報",null,null,null,null,null,null,null,null,null,null,null,{"$f":"A5","v":"１．基本情報"}]
[]
["ふりがな",null,null,null,null,null,null,null,null,null,null,null,{"$f":"A7","v":"ふりがな"},null,null,null,"かぶしきがいしゃ○○○○ぎんこう",null,null,null,null,null,null,null,null,null,null,null,null,null,null,null,null,null,null,null,null,null,null,null,null,null,null,null,null,null,null,null,null,null,"様式2_E7","ふりがな",{"$f":"IF(E7=\"\",\"\",E7)","v":""}]
["金融機関名",null,null,null,null,null,null,null,null,null,null,null,{"$f":"A8","v":"金融機関名"},null,null,null,"株式会社○○銀行",null,null,null,null,null,null,null,null,null,null,null,null,null,null,null,null,null,null,null,null,null,null,null,null,null,null,null,null,null,null,null,null,null,"様式2_E8","金融機関名",{"$f":"IF(E8=\"\",\"\",E8)","v":""}]
["法人番号(１３桁)",null,null,null,null,null,null,null,null,null,null,null,{"$f":"A9","v":"法人番号(１３桁)"},null,null,null,"○○○○○○○○○○○○○",null,null,null,null,null,null,null,null,null,null,null,null,null,null,null,null,null,null,null,null,null,null,null,null,null,null,null,null,null,null,null,null,null,"様式2_E9","法人番号(１３桁)",""]
["金融機関コード(４桁）",null,null,null,null,null,null,null,null,null,null,null,{"$f":"A10","v":"金融機関コード(４桁）"},null,null,null,"○○○○",null,null,null,null,null,null,null,null,null,null,null,null,null,null,null,null,null,null,null,null,null,null,null,null,null,null,null,null,null,null,null,null,null,"様式2_E10","金融機関コード(４桁）",""]
["本社所在地",null,"都道府県",null,null,null,null,null,null,null,null,null,{"$f":"A11","v":"本社所在地"},null,{"$f":"C11","v":"都道府県"},null,"○○県",null,null,null,null,null,null,null,null,null,null,null,null,null,null,null,null,null,null,null,null,null,null,null,null,null,null,null,null,null,null,null,null,null,"様式2_E11","都道府県",""]
[null,null,"市区町村",null,null,null,null,null,null,null,null,null,null,null,{"$f":"C12","v":"市区町村"},null,"○○市",null,null,null,null,null,null,null,null,null,null,null,null,null,null,null,null,null,null,null,null,null,null,null,null,null,null,null,null,null,null,null,null,null,"様式2_E12","市区町村",""]
[null,null,"丁目・番地",null,null,null,null,null,null,null,null,null,null,null,{"$f":"C13","v":"丁目・番地"},null,"○○町○丁目○番○号",null,null,null,null,null,null,null,null,null,null,null,null,null,null,null,null,null,null,null,null,null,null,null,null,null,null,null,null,null,null,null,null,null,"様式2_E13","丁目・番地",""]
["公表資料情報\n（ディスクロージャー等）",null,"拠点数(国内)",null,null,null,null,null,null,"件",null,null,"公表資料情報\n（ディスクロージャー等）",null,{"$f":"C14","v":"拠点数(国内)"},null,"〇〇〇",null,null,null,null,{"$f":"J14","v":"件"},null,null,null,null,null,null,null,null,null,null,null,null,null,null,null,null,null,null,null,null,null,null,null,null,null,null,null,null,"様式2_E14","拠点数(国内)",""]
[null,null,"拠点数(海外)",null,null,null,null,null,null,"件",null,null,null,null,"拠点数(海外)",null,"○○○",null,null,null,null,{"$f":"J15","v":"件"},null,null,null,null,null,null,null,null,null,null,null,null,null,null,null,null,null,null,null,null,null,null,null,null,null,null,null,null,"様式2_E15","拠点数(海外)",""]
[null,null,"貸出先数",null,null,null,null,null,null,"件",null,null,null,null,"貸出先数",null,"○○○",null,null,null,null,{"$f":"J16","v":"件"},null,null,null,null,null,null,null,null,null,null,null,null,null,null,null,null,null,null,null,null,null,null,null,null,null,null,null,null,"様式2_E16","貸出先数",{"$f":"IF(E16=\"\",\"\",E16)","v":""}]
[null,null,"貸出金残高(単体)",null,null,null,null,null,null,"百万円",null,null,null,null,"貸出金残高(単体)",null,"○○○,○○○",null,null,null,null,{"$f":"J17","v":"百万円"},null,null,null,null,null,null,null,null,null,null,null,null,null,null,null,null,null,null,null,null,null,null,null,null,null,null,null,null,"様式2_E17","貸出金残高",{"$f":"IF(E17=\"\",\"\",E17)","v":""}]
[null,null,"資本金/出資金等\n(単体)",null,null,null,null,null,null,"百万円",null,null,null,null,"資本金/出資金等\n(単体)",null,"○○○,○○○",null,null,null,null,{"$f":"J18","v":"百万円"},null,null,null,null,null,null,null,null,null,null,null,null,null,null,null,null,null,null,null,null,null,null,null,null,null,null,null,null,"様式2_E18","資本金/出資金等",""]
[null,null,"自己資本比率\n(単体)",null,null,null,null,null,null,"％",null,null,null,null,"自己資本比率\n(単体)",null,"○.○○",null,null,null,null,"％",null,null,null,null,null,null,null,null,null,null,null,null,null,null,null,null,null,null,null,null,null,null,null,null,null,null,null,null,"様式2_E19","自己資本比率",""]
["本事業についての\n担当窓口\n\n※通知書送付先や\nメール案内宛先\nとしても利用する為、\n部署情報を入力すること",null,"部署名",null,null,null,null,null,null,null,null,null,"本事業についての\n担当窓口\n\n※通知書送付先や\nメール案内宛先\nとしても利用する為、\n部署情報を入力すること",null,"部署名",null,"○○○○部　○○課",null,null,null,null,null,null,null,null,null,null,null,null,null,null,null,null,null,null,null,null,null,null,null,null,null,null,null,null,null,null,null,null,null,"様式2_E20","部署名",""]
[null,null,"担当者名\n（ふりがな）",null,null,null,null,null,null,null,null,null,null,null,"担当者名\n（ふりがな）",null,"○○ ○○、△△ △△△",null,null,null,null,null,null,null,null,null,null,null,null,null,null,null,null,null,null,null,null,null,null,null,null,null,null,null,null,null,null,null,null,null,"様式2_E21","ふりがな\n（担当者名）",{"$f":"IF(E21=\"\",\"\",E21)","v":""}]
[null,null,"担当者名\n(漢字)",null,null,null,null,null,null,null,null,null,null,null,"担当者名\n(漢字)",null,"○○ ○○、△△ △△△",null,null,null,null,null,null,null,null,null,null,null,null,null,null,null,null,null,null,null,null,null,null,null,null,null,null,null,null,null,null,null,null,null,"様式2_E22","担当者名",{"$f":"IF(E22=\"\",\"\",E22)","v":""}]
[null,null,"電話番号",null,null,null,null,null,null,null,null,null,null,null,{"$f":"C23","v":"電話番号"},null,"○○-○○○○-○○○○",null,null,null,null,null,null,null,null,null,null,null,null,null,null,null,null,null,null,null,null,null,null,null,null,null,null,null,null,null,null,null,null,null,"様式2_E23","電話番号",""]
[null,null,"メールアドレス",null,null,null,null,null,null,null,null,null,null,null,"メールアドレス",null,"○○○○○@○○○○,△△△△△△@△△△△",null,null,null,null,null,null,null,null,null,null,null,null,null,null,null,null,null,null,null,null,null,null,null,null,null,null,null,null,null,null,null,null,null,"様式2_E24","メールアドレス",""]

{"sheet":"様式３","index":4,"n_rows":199,"n_cols":53,"rows_kept":199,"cut":false,"hidden":false,"merged":[[61,2,61,6],[61,8,61,12],[61,14,61,18],[31,2,31,6],[39,8,39,12],[39,14,39,18],[40,8,40,12],[40,14,40,18],[41,3,41,6],[33,15,33,18],[34,15,34,18],[35,15,35,18],[47,15,47,18],[48,15,48,18],[44,15,44,18],[45,15,45,18],[46,15,46,18],[55,15,55,18],[51,2,51,6],[51,8,51,12],[51,14,51,18],[58,2,59,2],[59,3,59,6],[58,8,59,8],[7,30,8,34],[22,8,22,12],[22,14,22,18],[21,23,21,27],[21,29,21,33],[31,8,31,12],[31,14,31,18],[23,13,28,13],[23,15,23,18],[24,15,24,18],[25,15,25,18],[23,34,28,34],[24,24,24,27],[30,8,30,12],[28,15,28,18],[30,14,30,18],[12,22,19,22],[12,24,12,27],[14,24,14,27],[15,24,15,27],[16,24,16,27],[17,24,17,27],[30,23,30,27],[30,29,30,33],[40,0,49,0],[41,1,49,1],[41,13,49,13],[41,7,49,7],[41,28,49,28],[41,22,49,22],[40,21,49,21],[41,34,49,34],[31,0,37,0],[32,1,37,1],[33,9,33,12],[34,9,34,12],[36,15,36,18],[39,2,39,6],[40,2,40,6],[41,9,41,12],[46,3,46,6],[43,3,43,6],[43,9,43,12],[43,15,43,18],[41,15,41,18],[42,3,42,6],[42,9,42,12],[42,15,42,18],[30,2,30,6],[36,2,37,2],[37,3,37,6],[36,8,37,8],[37,9,37,12],[36,14,37,14],[37,15,37,18],[48,2,49,2],[49,3,49,6],[48,8,49,8],[49,9,49,12],[48,14,49,14],[49,15,49,18],[32,15,32,18],[32,7,37,7],[32,13,37,13],[32,3,32,6],[36,3,36,6],[36,9,36,12],[35,3,35,6],[35,9,35,12],[33,3,33,6],[32,9,32,12],[34,3,34,6],[23,36,23,39],[23,3,23,6],[24,3,24,6],[7,35,8,39],[8,0,8,7],[8,21,8,28],[10,2,10,6],[10,23,10,27],[11,0,19,0],[11,2,11,6],[11,21,19,21],[11,23,11,27],[18,3,18,6],[12,3,12,6],[7,0,7,7],[7,9,8,13],[7,14,8,18],[7,21,7,28],[14,3,14,6],[15,3,15,6],[16,3,16,6],[17,3,17,6],[12,1,19,1],[18,24,18,27],[22,0,28,0],[26,3,26,6],[27,3,27,6],[23,1,28,1],[22,2,22,6],[26,15,26,18],[27,15,27,18],[24,30,24,33],[21,35,21,39],[22,35,22,39],[21,2,21,6],[21,8,21,12],[21,14,21,18],[22,21,28,21],[22,23,22,27],[22,29,22,33],[23,22,28,22],[23,24,23,27],[23,28,28,28],[23,30,23,33],[23,7,28,7],[23,9,23,12],[24,9,24,12],[25,9,25,12],[27,2,28,2],[28,3,28,6],[27,8,28,8],[28,9,28,12],[27,14,28,14],[27,36,27,39],[27,24,27,27],[27,30,27,33],[25,3,25,6],[26,9,26,12],[27,9,27,12],[27,29,28,29],[28,30,28,33],[27,35,28,35],[28,36,28,39],[24,36,24,39],[25,24,25,27],[25,30,25,33],[25,36,25,39],[26,24,26,27],[26,30,26,33],[26,36,26,39],[47,3,47,6],[48,3,48,6],[44,9,44,12],[45,9,45,12],[46,9,46,12],[47,9,47,12],[48,9,48,12],[44,3,44,6],[45,3,45,6],[36,24,36,27],[36,30,36,33],[36,36,36,39],[39,35,39,39],[40,23,40,27],[40,29,40,33],[40,35,40,39],[41,36,41,39],[59,9,59,12],[58,14,59,14],[59,15,59,18],[52,0,59,0],[52,2,52,6],[52,8,52,12],[52,14,52,18],[53,1,59,1],[53,3,53,6],[53,7,59,7],[53,9,53,12],[53,13,59,13],[53,15,53,18],[58,3,58,6],[58,9,58,12],[58,15,58,18],[56,3,56,6],[56,9,56,12],[57,3,57,6],[57,9,57,12],[57,15,57,18],[56,15,56,18],[54,3,54,6],[54,9,54,12],[54,15,54,18],[55,3,55,6],[55,9,55,12],[62,0,66,0],[62,2,62,6],[62,8,62,12],[62,14,62,18],[63,1,66,1],[63,3,63,6],[65,3,65,6],[65,9,65,12],[65,15,65,18],[63,7,66,7],[63,9,63,12],[63,13,66,13],[63,15,63,18],[64,3,64,6],[64,9,64,12],[64,15,64,18],[65,2,66,2],[66,3,66,6],[65,8,66,8],[66,9,66,12],[65,14,66,14],[66,15,66,18],[68,2,68,6],[68,8,68,12],[68,14,68,18],[69,0,80,0],[69,2,69,6],[69,8,69,12],[69,14,69,18],[70,1,80,1],[70,3,70,6],[79,9,79,12],[79,15,79,18],[74,3,74,6],[74,9,74,12],[74,15,74,18],[75,3,75,6],[75,9,75,12],[75,15,75,18],[70,7,80,7],[70,9,70,12],[71,15,71,18],[79,2,80,2],[78,15,78,18],[83,0,88,0],[83,2,83,6],[83,8,83,12],[83,14,83,18],[84,1,88,1],[84,3,84,6],[84,7,88,7],[84,9,84,12],[84,13,88,13],[84,15,84,18],[85,3,85,6],[85,9,85,12],[85,15,85,18],[87,2,88,2],[88,3,88,6],[87,8,88,8],[88,9,88,12],[87,14,88,14],[88,15,88,18],[87,3,87,6],[87,9,87,12],[87,15,87,18],[82,2,82,6],[82,8,82,12],[82,14,82,18],[76,3,76,6],[79,3,79,6],[86,3,86,6],[86,9,86,12],[86,15,86,18],[70,13,80,13],[70,15,70,18],[71,3,71,6],[71,9,71,12],[72,3,72,6],[80,3,80,6],[79,8,80,8],[80,9,80,12],[79,14,80,14],[80,15,80,18],[77,3,77,6],[77,9,77,12],[77,15,77,18],[72,9,72,12],[72,15,72,18],[62,21,66,21],[62,23,62,27],[62,29,62,33],[39,23,39,27],[39,29,39,33],[51,23,51,27],[51,29,51,33],[41,24,41,27],[41,30,41,33],[42,24,42,27],[52,21,59,21],[52,23,52,27],[52,29,52,33],[55,24,55,27],[61,29,61,33],[53,22,59,22],[53,24,53,27],[53,28,59,28],[53,30,53,33],[48,23,49,23],[45,36,45,39],[46,24,46,27],[46,30,46,33],[46,36,46,39],[43,36,43,39],[44,24,44,27],[44,30,44,33],[44,36,44,39],[42,30,42,33],[42,36,42,39],[43,24,43,27],[43,30,43,33],[45,24,45,27],[45,30,45,33],[51,35,51,39],[47,24,47,27],[47,30,47,33],[47,36,47,39],[48,24,48,27],[48,30,48,33],[48,36,48,39],[52,35,52,39],[49,24,49,27],[48,29,49,29],[49,30,49,33],[48,35,49,35],[49,36,49,39],[53,34,59,34],[53,36,53,39],[54,24,54,27],[54,30,54,33],[54,36,54,39],[58,24,58,27],[58,30,58,33],[58,36,58,39],[55,30,55,33],[55,36,55,39],[56,24,56,27],[56,30,56,33],[56,36,56,39],[57,24,57,27],[57,30,57,33],[57,36,57,39],[58,29,59,29],[59,30,59,33],[58,35,59,35],[59,36,59,39],[61,35,61,39],[62,35,62,39],[63,22,66,22],[63,24,63,27],[63,28,66,28],[63,30,63,33],[63,34,66,34],[63,36,63,39],[64,24,64,27],[64,30,64,33],[64,36,64,39],[65,24,65,27],[65,30,65,33],[65,36,65,39],[65,29,66,29],[66,30,66,33],[65,35,66,35],[66,36,66,39],[69,29,69,33],[69,35,69,39],[70,22,80,22],[78,30,78,33],[78,36,78,39],[79,24,79,27],[79,30,79,33],[79,36,79,39],[74,36,74,39],[75,24,75,27],[75,30,75,33],[75,36,75,39],[76,24,76,27],[76,36,76,39],[70,34,80,34],[74,24,74,27],[70,24,70,27],[70,28,80,28],[70,30,70,33],[74,30,74,33],[78,24,78,27],[76,30,76,33],[73,30,73,33],[73,36,73,39],[84,30,84,33],[84,34,88,34],[84,36,84,39],[85,24,85,27],[70,36,70,39],[71,24,71,27],[71,30,71,33],[71,36,71,39],[72,24,72,27],[72,30,72,33],[72,36,72,39],[85,30,85,33],[85,36,85,39],[86,24,86,27],[82,29,82,33],[82,35,82,39],[86,30,86,33],[86,36,86,39],[87,24,87,27],[82,23,82,27],[77,24,77,27],[77,30,77,33],[77,36,77,39],[73,24,73,27],[68,23,68,27],[68,29,68,33],[68,35,68,39],[83,21,88,21],[83,23,83,27],[83,29,83,33],[83,35,83,39],[84,22,88,22],[84,24,84,27],[84,28,88,28],[87,30,87,33],[87,36,87,39],[79,23,80,23],[80,24,80,27],[79,29,80,29],[80,30,80,33],[79,35,80,35],[80,36,80,39],[87,23,88,23],[88,24,88,27],[87,29,88,29],[88,30,88,33],[87,35,88,35],[88,36,88,39],[30,35,30,39],[34,24,34,27],[34,30,34,33],[34,36,34,39],[35,24,35,27],[35,30,35,33],[35,36,35,39],[33,36,33,39],[31,29,31,33],[31,35,31,39],[33,30,33,33],[31,23,31,27],[32,24,32,27],[32,28,37,28],[32,30,32,33],[32,34,37,34],[32,36,32,39],[33,24,33,27],[36,23,37,23],[37,24,37,27],[36,29,37,29],[37,30,37,33],[36,35,37,35],[37,36,37,39],[13,3,13,6],[18,2,19,2],[19,3,19,6],[13,24,13,27],[73,3,73,6],[73,9,73,12],[73,15,73,18],[58,23,59,23],[59,24,59,27],[65,23,66,23],[66,24,66,27],[18,23,19,23],[19,24,19,27],[27,23,28,23],[28,24,28,27],[69,21,80,21],[69,23,69,27],[61,23,61,27],[31,21,37,21],[32,22,37,22],[78,3,78,6],[76,9,76,12],[78,9,78,12],[76,15,76,18]]}
[]
["（様式３）",null,null,null,null,null,null,null,null,null,null,null,null,null,null,null,null,null,null,null,null,{"$f":"A2","v":"（様式３）"}]
[]
[]
["２．事業実施体制",null,null,null,null,null,null,null,null,null,null,null,null,null,null,null,null,null,null,null,null,{"$f":"A5","v":"２．事業実施体制"}]
["※下記（１）～（８）について、部署名や担当者名を入力し、当てはまる役割を選択して実施体制をご説明ください。",null,null,null,null,null,null,null,null,null,null,null,null,null,null,null,null,null,null,null,null,{"$f":"A6","v":"※下記（１）～（８）について、部署名や担当者名を入力し、当てはまる役割を選択して実施体制をご説明ください。"}]
[]
["説明資料",null,null,null,null,null,null,null,null,"（１）本事業全体の管理\n（２）利子補給対象事業の申請受付\n（３）与信調査及び対象要件に係る該当性の確認\n（４）融資計画書の作成・提出",null,null,null,null,"（５）交付申請書の作成・提出\n（６）資金使途確認\n（７）実績報告書の作成・利子補給金請求\n（８）執行団体又は国等からの調査への対応",null,null,null,null,null,null,"説明資料",null,null,null,null,null,null,null,null,"（１）本事業全体の管理\n（２）利子補給対象事業の申請受付\n（３）与信調査及び対象要件に係る該当性の確認\n（４）融資計画書の作成・提出",null,null,null,null,"（５）交付申請書の作成・提出\n（６）資金使途確認\n（７）実績報告書の作成・利子補給金請求\n（８）執行団体又は国等からの調査への対応"]
[null,null,null,null,null,null,null,null,null,null,null,null,null,null,null,null,null,null,null,null,null,"本様式にて説明",null,null,null,null,null,null,null,null,null,null,null,null,null,null,null,null,null,null,null,null,null,null,null,null,null,null,null,null,"様式３_A9","説明資料",{"$f":"IF(A9=\"\",\"\",A9)","v":""}]
[null,null,null,null,null,null,null,null,null,null,null,null,null,null,null,null,null,null,null,null,null,null,null,null,null,null,null,null,null,null,null,null,null,null,null,null,null,null,null,null,null,null,null,null,null,null,null,null,null,null,"様式３_C11","（１）部署名",{"$f":"IF(C11=\"\",\"\",C11)","v":""}]
["（１）","部署名",null,null,null,null,null,null,null,null,null,null,null,null,null,null,null,null,null,null,null,{"$f":"A11","v":"（１）"},{"$f":"B11","v":"部署名"},"本部",null,null,null,null,null,null,null,null,null,null,null,null,null,null,null,null,null,null,null,null,null,null,null,null,null,null,"様式３_C12","（１）担当者数",""]
["本事業全体の管理","担当者数",null,null,null,null,null,null,null,null,null,null,null,null,null,null,null,null,null,null,null,{"$f":"A12","v":"本事業全体の管理"},{"$f":"B12","v":"担当者数"},3,null,null,null,null,null,null,null,null,null,null,null,null,null,null,null,null,null,null,null,null,null,null,null,null,null,null,"様式３_C13",{"$f":"D13","v":"行内に本事業内容・要件について詳細を説明"},""]
[null,"役割等",null,"行内に本事業内容・要件について詳細を説明",null,null,null,null,null,null,null,null,null,null,null,null,null,null,null,null,null,null,"役割等","✓","行内に本事業内容・要件について詳細を説明",null,null,null,null,null,null,null,null,null,null,null,null,null,null,null,null,null,null,null,null,null,null,null,null,null,"様式３_C14",{"$f":"D15","v":"融資内容の管理"},{"$f":"IF(C15=\"\",\"\",C15)","v":""}]
[null,null,null,"申請受付状況の管理",null,null,null,null,null,null,null,null,null,null,null,null,null,null,null,null,null,null,null,"✓","申請受付状況の管理"]
[null,null,null,"融資内容の管理",null,null,null,null,null,null,null,null,null,null,null,null,null,null,null,null,null,null,null,"✓","融資内容の管理",null,null,null,null,null,null,null,null,null,null,null,null,null,null,null,null,null,null,null,null,null,null,null,null,null,"様式３_C15",{"$f":"D16","v":"提出期限の管理"},""]
[null,null,null,"提出期限の管理",null,null,null,null,null,null,null,null,null,null,null,null,null,null,null,null,null,null,null,"✓","提出期限の管理",null,null,null,null,null,null,null,null,null,null,null,null,null,null,null,null,null,null,null,null,null,null,null,null,null,"様式３_C16",{"$f":"D17","v":"提出資料のとりまとめ・最終確認・提出・保管"},{"$f":"IF(C17=\"\",\"\",C17)","v":""}]
[null,null,null,"提出資料のとりまとめ・最終確認・提出・保管",null,null,null,null,null,null,null,null,null,null,null,null,null,null,null,null,null,null,null,"✓","提出資料のとりまとめ・最終確認・提出・保管",null,null,null,null,null,null,null,null,null,null,null,null,null,null,null,null,null,null,null,null,null,null,null,null,null,"様式３_C17","受理資料の確認・保管",""]
[null,null,null,"受理資料の確認・保管",null,null,null,null,null,null,null,null,null,null,null,null,null,null,null,null,null,null,null,"✓","受理資料の確認・保管",null,null,null,null,null,null,null,null,null,null,null,null,null,null,null,null,null,null,null,null,null,null,null,null,null,"様式３_C18",{"$f":"D19","v":"その他"},{"$f":"IF(C19=\"\",\"\",C19)","v":""}]
[null,null,null,"その他",null,null,null,null,null,null,null,null,null,null,null,null,null,null,null,null,null,null,null,null,"その他",null,null,null,null,null,null,null,null,null,null,null,null,null,null,null,null,null,null,null,null,null,null,null,null,null,"様式３_C19",null,""]
[null,null,null,null,null,null,null,null,null,null,null,null,null,null,null,null,null,null,null,null,null,null,null,null,null,null,null,null,null,null,null,null,null,null,null,null,null,null,null,null,null,null,null,null,null,null,null,null,null,null,"様式３_C21","（２）部署名1",{"$f":"IF(C22=\"\",\"\",C22)","v":""}]
[null,null,null,null,null,null,null,null,null,null,null,null,null,null,null,null,null,null,null,null,null,null,null,null,null,null,null,null,null,null,null,null,null,null,null,null,null,null,null,null,null,null,null,null,null,null,null,null,null,null,"様式３_C22","（２）担当者数1",{"$f":"IF(C23=\"\",\"\",C23)","v":""}]
["（２）","部署名",null,null,null,null,null,"部署名",null,null,null,null,null,"部署名",null,null,null,null,null,null,null,"（２）","部署名","同上",null,null,null,null,"部署名","営業部",null,null,null,null,"部署名",null,null,null,null,null,null,null,null,null,null,null,null,null,null,null,"様式３_C23",{"$f":"D24","v":"SIIホームページ掲載の窓口への問合せに対し本事業内容・要件について詳細を説明、必要に応じて営業店への情報展開や対応依頼"},""]
["利子補給対象事業の申請受付","担当者数",null,null,null,null,null,"担当者数",null,null,null,null,null,"担当者数",null,null,null,null,null,null,null,"利子補給対象事業の申請受付","担当者数","同上",null,null,null,null,"担当者数",100,null,null,null,null,"担当者数",null,null,null,null,null,null,null,null,null,null,null,null,null,null,null,"様式３_C24",{"$f":"D25","v":"本事業を検討する事業者に対し、本事業内容・要件について詳細な説明"},""]
[null,"役割等",null,"SIIホームページ掲載の窓口への問合せに対し本事業内容・要件について詳細を説明、必要に応じて営業店への情報展開や対応依頼",null,null,null,"役割等",null,"SIIホームページ掲載の窓口への問合せに対し本事業内容・要件について詳細を説明、必要に応じて営業店への情報展開や対応依頼",null,null,null,"役割等",null,"SIIホームページ掲載の窓口への問合せに対し本事業内容・要件について詳細を説明、必要に応じて営業店への情報展開や対応依頼",null,null,null,null,null,null,"役割等","✓","SIIホームページ掲載の窓口への問合せに対し本事業内容・要件について詳細を説明、必要に応じて営業店への情報展開や対応依頼",null,null,null,"役割等",null,"SIIホームページ掲載の窓口への問合せに対し本事業内容・要件について詳細を説明、必要に応じて営業店への情報展開や対応依頼",null,null,null,"役割等",null,"SIIホームページ掲載の窓口への問合せに対し本事業内容・要件について詳細を説明、必要に応じて営業店への情報展開や対応依頼",null,null,null,null,null,null,null,null,null,null,null,null,null,"様式３_C25","他補助金と共にセミナーを開催、参加者に対し本事業内容・要件について詳細を説明",""]
[null,null,null,"本事業を検討する事業者に対し、本事業内容・要件について詳細な説明",null,null,null,null,null,"本事業を検討する事業者に対し、本事業内容・要件について詳細な説明",null,null,null,null,null,"本事業を検討する事業者に対し、本事業内容・要件について詳細な説明",null,null,null,null,null,null,null,null,"本事業を検討する事業者に対し、本事業内容・要件について詳細な説明",null,null,null,null,"✓","本事業を検討する事業者に対し、本事業内容・要件について詳細な説明",null,null,null,null,null,"本事業を検討する事業者に対し、本事業内容・要件について詳細な説明",null,null,null,null,null,null,null,null,null,null,null,null,null,"様式３_C26","本事業を検討する事業者に対し、必要に応じて営業店への情報展開や対応依頼",""]
[null,null,null,"他補助金と共にセミナーを開催、参加者に対し本事業内容・要件について詳細を説明",null,null,null,null,null,"他補助金と共にセミナーを開催、参加者に対し本事業内容・要件について詳細を説明",null,null,null,null,null,"他補助金と共にセミナーを開催、参加者に対し本事業内容・要件について詳細を説明",null,null,null,null,null,null,null,"✓","他補助金と共にセミナーを開催、参加者に対し本事業内容・要件について詳細を説明",null,null,null,null,null,"他補助金と共にセミナーを開催、参加者に対し本事業内容・要件について詳細を説明",null,null,null,null,null,"他補助金と共にセミナーを開催、参加者に対し本事業内容・要件について詳細を説明",null,null,null,null,null,null,null,null,null,null,null,null,null,"様式３_C27","その他",""]
[null,null,null,"本事業を検討する事業者に対し、必要に応じて営業店への情報展開や対応依頼",null,null,null,null,null,"本事業を検討する事業者に対し、必要に応じて営業店への情報展開や対応依頼",null,null,null,null,null,"本事業を検討する事業者に対し、必要に応じて営業店への情報展開や対応依頼",null,null,null,null,null,null,null,"✓","本事業を検討する事業者に対し、必要に応じて営業店への情報展開や対応依頼",null,null,null,null,null,"本事業を検討する事業者に対し、必要に応じて営業店への情報展開や対応依頼",null,null,null,null,null,"本事業を検討する事業者に対し、必要に応じて営業店への情報展開や対応依頼",null,null,null,null,null,null,null,null,null,null,null,null,null,"様式３_C28",null,""]
[null,null,null,"その他",null,null,null,null,null,"その他",null,null,null,null,null,"その他",null,null,null,null,null,null,null,null,"その他",null,null,null,null,null,"その他",null,null,null,null,null,"その他",null,null,null,null,null,null,null,null,null,null,null,null,null,"様式３_I21","（２）部署名2",{"$f":"IF(I22=\"\",\"\",I22)","v":""}]
[null,null,null,null,null,null,null,null,null,null,null,null,null,null,null,null,null,null,null,null,null,null,null,null,null,null,null,null,null,null,null,null,null,null,null,null,null,null,null,null,null,null,null,null,null,null,null,null,null,null,"様式３_I22","（２）担当者数2",{"$f":"IF(I23=\"\",\"\",I23)","v":""}]
[null,null,null,null,null,null,null,null,null,null,null,null,null,null,null,null,null,null,null,null,null,null,null,null,null,null,null,null,null,null,null,null,null,null,null,null,null,null,null,null,null,null,null,null,null,null,null,null,null,null,"様式３_I23",{"$f":"J24","v":"SIIホームページ掲載の窓口への問合せに対し本事業内容・要件について詳細を説明、必要に応じて営業店への情報展開や対応依頼"},""]
["（３）","部署名",null,null,null,null,null,"部署名",null,null,null,null,null,"部署名",null,null,null,null,null,null,null,"（３）","部署名","同上",null,null,null,null,"部署名","同上",null,null,null,null,"部署名","審査部",null,null,null,null,null,null,null,null,null,null,null,null,null,null,"様式３_I24",{"$f":"J25","v":"本事業を検討する事業者に対し、本事業内容・要件について詳細な説明"},""]
["与信調査及び対象要件に係る該当性の確認","担当者数",null,null,null,null,null,"担当者数",null,null,null,null,null,"担当者数",null,null,null,null,null,null,null,"与信調査及び対象要件に係る該当性の確認","担当者数","同上",null,null,null,null,"担当者数","同上",null,null,null,null,"担当者数",10,null,null,null,null,null,null,null,null,null,null,null,null,null,null,"様式３_I25","他補助金と共にセミナーを開催、参加者に対し本事業内容・要件について詳細を説明",""]
[null,"役割等",null,"公募要領の要件を満たしていることの確認",null,null,null,"役割等",null,"公募要領の要件を満たしていることの確認",null,null,null,"役割等",null,"公募要領の要件を満たしていることの確認",null,null,null,null,null,null,"役割等","✓","公募要領の要件を満たしていることの確認",null,null,null,"役割等",null,"公募要領の要件を満たしていることの確認",null,null,null,"役割等",null,"公募要領の要件を満たしていることの確認",null,null,null,null,null,null,null,null,null,null,null,null,null,"様式３_I26","本事業を検討する事業者に対し、必要に応じて営業店への情報展開や対応依頼",""]
[null,null,null,"省エネ効果の計算や必要書類の準備等",null,null,null,null,null,"省エネ効果の計算や必要書類の準備等",null,null,null,null,null,"省エネ効果の計算や必要書類の準備等",null,null,null,null,null,null,null,"✓","省エネ効果の計算や必要書類の準備等",null,null,null,null,null,"省エネ効果の計算や必要書類の準備等",null,null,null,null,null,"省エネ効果の計算や必要書類の準備等",null,null,null,null,null,null,null,null,null,null,null,null,null,"様式３_I27","その他",""]
[null,null,null,"融資与信調査",null,null,null,null,null,"融資与信調査",null,null,null,null,null,"融資与信調査",null,null,null,null,null,null,null,null,"融資与信調査",null,null,null,null,"✓","融資与信調査",null,null,null,null,"✓","融資与信調査",null,null,null,null,null,null,null,null,null,null,null,null,null,"様式３_I28",null,""]
[null,null,null,"社内決裁",null,null,null,null,null,"社内決裁",null,null,null,null,null,"社内決裁",null,null,null,null,null,null,null,null,"社内決裁",null,null,null,null,"✓","社内決裁",null,null,null,null,"✓","社内決裁",null,null,null,null,null,null,null,null,null,null,null,null,null,"様式３_O21","（２）部署名3",{"$f":"IF(O22=\"\",\"\",O22)","v":""}]
[null,null,null,"その他",null,null,null,null,null,"その他",null,null,null,null,null,"その他",null,null,null,null,null,null,null,"✓","その他",null,null,null,null,null,"その他",null,null,null,null,null,"その他",null,null,null,null,null,null,null,null,null,null,null,null,null,"様式３_O22","（２）担当者数3",{"$f":"IF(O23=\"\",\"\",O23)","v":""}]
[null,null,null,null,null,null,null,null,null,null,null,null,null,null,null,null,null,null,null,null,null,null,null,null,"省エネ効果については、外部機関〇〇と連携し、省エネ計算・評価を客観的に行う。",null,null,null,null,null,null,null,null,null,null,null,null,null,null,null,null,null,null,null,null,null,null,null,null,null,"様式３_O23",{"$f":"P24","v":"SIIホームページ掲載の窓口への問合せに対し本事業内容・要件について詳細を説明、必要に応じて営業店への情報展開や対応依頼"},""]
[null,null,null,null,null,null,null,null,null,null,null,null,null,null,null,null,null,null,null,null,null,null,null,null,null,null,null,null,null,null,null,null,null,null,null,null,null,null,null,null,null,null,null,null,null,null,null,null,null,null,"様式３_O24",{"$f":"P25","v":"本事業を検討する事業者に対し、本事業内容・要件について詳細な説明"},""]
["（４）","部署名",null,null,null,null,null,"部署名",null,null,null,null,null,"部署名",null,null,null,null,null,null,null,"（４）","部署名","同上",null,null,null,null,"部署名","同上",null,null,null,null,"部署名",null,null,null,null,null,null,null,null,null,null,null,null,null,null,null,"様式３_O25","他補助金と共にセミナーを開催、参加者に対し本事業内容・要件について詳細を説明",""]
["融資計画書の作成・提出","担当者数",null,null,null,null,null,"担当者数",null,null,null,null,null,"担当者数",null,null,null,null,null,null,null,"融資計画書の作成・提出","担当者数","同上",null,null,null,null,"担当者数","同上",null,null,null,null,"担当者数",null,null,null,null,null,null,null,null,null,null,null,null,null,null,null,"様式３_O26","本事業を検討する事業者に対し、必要に応じて営業店への情報展開や対応依頼",""]
[null,"役割等",null,"融資内容の確認",null,null,null,"役割等",null,"融資内容の確認",null,null,null,"役割等",null,"融資内容の確認",null,null,null,null,null,null,"役割等","✓","融資内容の確認",null,null,null,"役割等","✓","融資内容の確認",null,null,null,"役割等",null,"融資内容の確認",null,null,null,null,null,null,null,null,null,null,null,null,null,"様式３_O27","その他",""]
[null,null,null,"導入設備、省エネ効果の確認",null,null,null,null,null,"導入設備、省エネ効果の確認",null,null,null,null,null,"導入設備、省エネ効果の確認",null,null,null,null,null,null,null,"✓","導入設備、省エネ効果の確認",null,null,null,null,"✓","導入設備、省エネ効果の確認",null,null,null,null,null,"導入設備、省エネ効果の確認",null,null,null,null,null,null,null,null,null,null,null,null,null,"様式３_O28",null,""]
[null,null,null,"融資計画書の作成",null,null,null,null,null,"融資計画書の作成",null,null,null,null,null,"融資計画書の作成",null,null,null,null,null,null,null,null,"融資計画書の作成",null,null,null,null,"✓","融資計画書の作成",null,null,null,null,null,"融資計画書の作成",null,null,null,null,null,null,null,null,null,null,null,null,null,"様式３_C30","（３）部署名1",{"$f":"IF(C31=\"\",\"\",C31)","v":""}]
[null,null,null,"添付資料の準備",null,null,null,null,null,"添付資料の準備",null,null,null,null,null,"添付資料の準備",null,null,null,null,null,null,null,null,"添付資料の準備",null,null,null,null,"✓","添付資料の準備",null,null,null,null,null,"添付資料の準備",null,null,null,null,null,null,null,null,null,null,null,null,null,"様式３_C31","（３）担当者数1",""]
[null,null,null,"融資計画書に係る書類のとりまとめ",null,null,null,null,null,"融資計画書に係る書類のとりまとめ",null,null,null,null,null,"融資計画書に係る書類のとりまとめ",null,null,null,null,null,null,null,"✓","融資計画書に係る書類のとりまとめ",null,null,null,null,null,"融資計画書に係る書類のとりまとめ",null,null,null,null,null,"融資計画書に係る書類のとりまとめ",null,null,null,null,null,null,null,null,null,null,null,null,null,"様式３_C32","公募要領の要件を満たしていることの確認",""]
[null,null,null,"融資計画書の最終確認",null,null,null,null,null,"融資計画書の最終確認",null,null,null,null,null,"融資計画書の最終確認",null,null,null,null,null,null,null,"✓","融資計画書の最終確認",null,null,null,null,null,"融資計画書の最終確認",null,null,null,null,null,"融資計画書の最終確認",null,null,null,null,null,null,null,null,null,null,null,null,null,"様式３_C33","省エネ効果の計算や必要書類の準備等",""]
[null,null,null,"融資計画書の提出",null,null,null,null,null,"融資計画書の提出",null,null,null,null,null,"融資計画書の提出",null,null,null,null,null,null,null,"✓","融資計画書の提出",null,null,null,null,null,"融資計画書の提出",null,null,null,null,null,"融資計画書の提出",null,null,null,null,null,null,null,null,null,null,null,null,null,"様式３_C34","融資与信調査",""]
[null,null,null,"その他",null,null,null,null,null,"その他",null,null,null,null,null,"その他",null,null,null,null,null,null,null,null,"その他",null,null,null,null,null,"その他",null,null,null,null,null,"その他",null,null,null,null,null,null,null,null,null,null,null,null,null,"様式３_C35","社内決裁",""]
[null,null,null,null,null,null,null,null,null,null,null,null,null,null,null,null,null,null,null,null,null,null,null,null,null,null,null,null,null,null,null,null,null,null,null,null,null,null,null,null,null,null,null,null,null,null,null,null,null,null,"様式３_C36","その他",""]
[null,null,null,null,null,null,null,null,null,null,null,null,null,null,null,null,null,null,null,null,null,null,null,null,null,null,null,null,null,null,null,null,null,null,null,null,null,null,null,null,null,null,null,null,null,null,null,null,null,null,"様式３_C37",null,""]
["（５）","部署名",null,null,null,null,null,"部署名",null,null,null,null,null,"部署名",null,null,null,null,null,null,null,"（５）","部署名","同上",null,null,null,null,"部署名","同上",null,null,null,null,"部署名",null,null,null,null,null,null,null,null,null,null,null,null,null,null,null,"様式３_I30","（３）部署名2",{"$f":"IF(I31=\"\",\"\",I31)","v":""}]
["交付申請書の作成・提出","担当者数",null,null,null,null,null,"担当者数",null,null,null,null,null,"担当者数",null,null,null,null,null,null,null,"交付申請書の作成・提出","担当者数","同上",null,null,null,null,"担当者数","同上",null,null,null,null,"担当者数",null,null,null,null,null,null,null,null,null,null,null,null,null,null,null,"様式３_I31","（３）担当者数2",""]
[null,"役割等",null,"融資内容の確認",null,null,null,"役割等",null,"融資内容の確認",null,null,null,"役割等",null,"融資内容の確認",null,null,null,null,null,null,"役割等","✓","融資内容の確認",null,null,null,"役割等",null,"融資内容の確認",null,null,null,"役割等",null,"融資内容の確認",null,null,null,null,null,null,null,null,null,null,null,null,null,"様式３_I32","公募要領の要件を満たしていることの確認",""]
[null,null,null,"交付申請書の作成",null,null,null,null,null,"交付申請書の作成",null,null,null,null,null,"交付申請書の作成",null,null,null,null,null,null,null,"✓","交付申請書の作成",null,null,null,null,null,"交付申請書の作成",null,null,null,null,null,"交付申請書の作成",null,null,null,null,null,null,null,null,null,null,null,null,null,"様式３_I33","省エネ効果の計算や必要書類の準備等",""]
[null,null,null,"交付申請書に係る書類のとりまとめ",null,null,null,null,null,"交付申請書に係る書類のとりまとめ",null,null,null,null,null,"交付申請書に係る書類のとりまとめ",null,null,null,null,null,null,null,"✓","交付申請書に係る書類のとりまとめ",null,null,null,null,null,"交付申請書に係る書類のとりまとめ",null,null,null,null,null,"交付申請書に係る書類のとりまとめ",null,null,null,null,null,null,null,null,null,null,null,null,null,"様式３_I34","融資与信調査",""]
[null,null,null,"交付申請書の最終確認",null,null,null,null,null,"交付申請書の最終確認",null,null,null,null,null,"交付申請書の最終確認",null,null,null,null,null,null,null,null,"交付申請書の最終確認",null,null,null,null,"✓","交付申請書の最終確認",null,null,null,null,null,"交付申請書の最終確認",null,null,null,null,null,null,null,null,null,null,null,null,null,"様式３_I35","社内決裁",""]
[null,null,null,"交付申請書の提出",null,null,null,null,null,"交付申請書の提出",null,null,null,null,null,"交付申請書の提出",null,null,null,null,null,null,null,null,"交付申請書の提出",null,null,null,null,"✓","交付申請書の提出",null,null,null,null,null,"交付申請書の提出",null,null,null,null,null,null,null,null,null,null,null,null,null,"様式３_I36","その他",""]
[null,null,null,"その他",null,null,null,null,null,"その他",null,null,null,null,null,"その他",null,null,null,null,null,null,null,null,"その他",null,null,null,null,null,"その他",null,null,null,null,null,"その他",null,null,null,null,null,null,null,null,null,null,null,null,null,"様式３_I37",null,""]
[null,null,null,null,null,null,null,null,null,null,null,null,null,null,null,null,null,null,null,null,null,null,null,null,null,null,null,null,null,null,null,null,null,null,null,null,null,null,null,null,null,null,null,null,null,null,null,null,null,null,"様式３_O30","（３）部署名3",{"$f":"IF(O31=\"\",\"\",O31)","v":""}]
[null,null,null,null,null,null,null,null,null,null,null,null,null,null,null,null,null,null,null,null,null,null,null,null,null,null,null,null,null,null,null,null,null,null,null,null,null,null,null,null,null,null,null,null,null,null,null,null,null,null,"様式３_O31","（３）担当者数3",""]
["（６）","部署名",null,null,null,null,null,"部署名",null,null,null,null,null,"部署名",null,null,null,null,null,null,null,"（６）","部署名","同上",null,null,null,null,"部署名","同上",null,null,null,null,"部署名",null,null,null,null,null,null,null,null,null,null,null,null,null,null,null,"様式３_O32","公募要領の要件を満たしていることの確認",""]
["資金使途確認","担当者数",null,null,null,null,null,"担当者数",null,null,null,null,null,"担当者数",null,null,null,null,null,null,null,"資金使途確認","担当者数","同上",null,null,null,null,"担当者数","同上",null,null,null,null,"担当者数",null,null,null,null,null,null,null,null,null,null,null,null,null,null,null,"様式３_O33","省エネ効果の計算や必要書類の準備等",""]
[null,"役割等",null,"営業店の資金使途確認結果の確認・管理",null,null,null,"役割等",null,"営業店の資金使途確認結果の確認・管理",null,null,null,"役割等",null,"営業店の資金使途確認結果の確認・管理",null,null,null,null,null,null,"役割等","✓","営業店の資金使途確認結果の確認・管理",null,null,null,"役割等",null,"営業店の資金使途確認結果の確認・管理",null,null,null,"役割等",null,"営業店の資金使途確認結果の確認・管理",null,null,null,null,null,null,null,null,null,null,null,null,null,"様式３_O34","融資与信調査",""]
[null,null,null,"資金トレース（支払先への資金還流確認）",null,null,null,null,null,"資金トレース（支払先への資金還流確認）",null,null,null,null,null,"資金トレース（支払先への資金還流確認）",null,null,null,null,null,null,null,null,"資金トレース（支払先への資金還流確認）",null,null,null,null,"✓","資金トレース（支払先への資金還流確認）",null,null,null,null,null,"資金トレース（支払先への資金還流確認）",null,null,null,null,null,null,null,null,null,null,null,null,null,"様式３_O35","社内決裁",""]
[null,null,null,"その他",null,null,null,null,null,"その他",null,null,null,null,null,"その他",null,null,null,null,null,null,null,null,"その他",null,null,null,null,null,"その他",null,null,null,null,null,"その他",null,null,null,null,null,null,null,null,null,null,null,null,null,"様式３_O36","その他",""]
[null,null,null,null,null,null,null,null,null,null,null,null,null,null,null,null,null,null,null,null,null,null,null,null,null,null,null,null,null,null,null,null,null,null,null,null,null,null,null,null,null,null,null,null,null,null,null,null,null,null,"様式３_O37",null,""]
[null,null,null,null,null,null,null,null,null,null,null,null,null,null,null,null,null,null,null,null,null,null,null,null,null,null,null,null,null,null,null,null,null,null,null,null,null,null,null,null,null,null,null,null,null,null,null,null,null,null,"様式３_C39","（４）部署名1",{"$f":"IF(C40=\"\",\"\",C40)","v":""}]
["（７）","部署名",null,null,null,null,null,"部署名",null,null,null,null,null,"部署名",null,null,null,null,null,null,null,"（７）","部署名","同上",null,null,null,null,"部署名","同上",null,null,null,null,"部署名",null,null,null,null,null,null,null,null,null,null,null,null,null,null,null,"様式３_C40","（４）担当者数1",{"$f":"IF(C41=\"\",\"\",C41)","v":""}]
["実績報告書の作成・利子補給金請求","担当者数",null,null,null,null,null,"担当者数",null,null,null,null,null,"担当者数",null,null,null,null,null,null,null,"実績報告書の作成・利子補給金請求","担当者数","同上",null,null,null,null,"担当者数","同上",null,null,null,null,"担当者数",null,null,null,null,null,null,null,null,null,null,null,null,null,null,null,"様式３_C41","融資内容の確認",{"$f":"IF(C42=\"\",\"\",C42)","v":""}]
[null,"役割等",null,"融資内容の確認",null,null,null,"役割等",null,"融資内容の確認",null,null,null,"役割等",null,"融資内容の確認",null,null,null,null,null,null,"役割等","✓","融資内容の確認",null,null,null,"役割等","✓","融資内容の確認",null,null,null,"役割等",null,"融資内容の確認",null,null,null,null,null,null,null,null,null,null,null,null,null,"様式３_C42","導入設備、省エネ効果の確認",{"$f":"IF(C43=\"\",\"\",C43)","v":""}]
[null,null,null,"実績報告書の作成",null,null,null,null,null,"実績報告書の作成",null,null,null,null,null,"実績報告書の作成",null,null,null,null,null,null,null,null,"実績報告書の作成",null,null,null,null,"✓","実績報告書の作成",null,null,null,null,null,"実績報告書の作成",null,null,null,null,null,null,null,null,null,null,null,null,null,"様式３_C44","融資計画書の作成",{"$f":"IF(C44=\"\",\"\",C44)","v":""}]
[null,null,null,"実績報告書に係る書類のとりまとめ",null,null,null,null,null,"実績報告書に係る書類のとりまとめ",null,null,null,null,null,"実績報告書に係る書類のとりまとめ",null,null,null,null,null,null,null,"✓","実績報告書に係る書類のとりまとめ",null,null,null,null,null,"実績報告書に係る書類のとりまとめ",null,null,null,null,null,"実績報告書に係る書類のとりまとめ",null,null,null,null,null,null,null,null,null,null,null,null,null,"様式３_C45","添付資料の準備",""]
[null,null,null,"実績報告書の最終確認",null,null,null,null,null,"実績報告書の最終確認",null,null,null,null,null,"実績報告書の最終確認",null,null,null,null,null,null,null,"✓","実績報告書の最終確認",null,null,null,null,null,"実績報告書の最終確認",null,null,null,null,null,"実績報告書の最終確認",null,null,null,null,null,null,null,null,null,null,null,null,null,"様式３_C46","融資計画書に係る書類のとりまとめ",{"$f":"IF(C46=\"\",\"\",C46)","v":""}]
[null,null,null,"実績報告書の提出",null,null,null,null,null,"実績報告書の提出",null,null,null,null,null,"実績報告書の提出",null,null,null,null,null,null,null,"✓","実績報告書の提出",null,null,null,null,null,"実績報告書の提出",null,null,null,null,null,"実績報告書の提出",null,null,null,null,null,null,null,null,null,null,null,null,null,"様式３_C47","融資計画書の最終確認",{"$f":"IF(C47=\"\",\"\",C47)","v":""}]
[null,null,null,"利子補給金請求に係る書類の作成",null,null,null,null,null,"利子補給金請求に係る書類の作成",null,null,null,null,null,"利子補給金請求に係る書類の作成",null,null,null,null,null,null,null,null,"利子補給金請求に係る書類の作成",null,null,null,null,"✓","利子補給金請求に係る書類の作成",null,null,null,null,null,"利子補給金請求に係る書類の作成",null,null,null,null,null,null,null,null,null,null,null,null,null,"様式３_C48","融資計画書の提出",{"$f":"IF(C48=\"\",\"\",C48)","v":""}]
[null,null,null,"利子補給金請求に係る書類のとりまとめ",null,null,null,null,null,"利子補給金請求に係る書類のとりまとめ",null,null,null,null,null,"利子補給金請求に係る書類のとりまとめ",null,null,null,null,null,null,null,"✓","利子補給金請求に係る書類のとりまとめ",null,null,null,null,null,"利子補給金請求に係る書類のとりまとめ",null,null,null,null,null,"利子補給金請求に係る書類のとりまとめ",null,null,null,null,null,null,null,null,null,null,null,null,null,"様式３_C49","その他",{"$f":"IF(C49=\"\",\"\",C49)","v":""}]
[null,null,null,"利子補給金請求に係る書類の最終確認",null,null,null,null,null,"利子補給金請求に係る書類の最終確認",null,null,null,null,null,"利子補給金請求に係る書類の最終確認",null,null,null,null,null,null,null,"✓","利子補給金請求に係る書類の最終確認",null,null,null,null,null,"利子補給金請求に係る書類の最終確認",null,null,null,null,null,"利子補給金請求に係る書類の最終確認",null,null,null,null,null,null,null,null,null,null,null,null,null,"様式３_C50",null,{"$f":"IF(C50=\"\",\"\",C50)","v":""}]
[null,null,null,"利子補給金請求に係る書類の提出",null,null,null,null,null,"利子補給金請求に係る書類の提出",null,null,null,null,null,"利子補給金請求に係る書類の提出",null,null,null,null,null,null,null,"✓","利子補給金請求に係る書類の提出",null,null,null,null,null,"利子補給金請求に係る書類の提出",null,null,null,null,null,"利子補給金請求に係る書類の提出",null,null,null,null,null,null,null,null,null,null,null,null,null,"様式３_I39","（４）部署名2",{"$f":"IF(I40=\"\",\"\",I40)","v":""}]
[null,null,null,"その他",null,null,null,null,null,"その他",null,null,null,null,null,"その他",null,null,null,null,null,null,null,null,"その他",null,null,null,null,null,"その他",null,null,null,null,null,"その他",null,null,null,null,null,null,null,null,null,null,null,null,null,"様式３_I40","（４）担当者数2",{"$f":"IF(I41=\"\",\"\",I41)","v":""}]
[null,null,null,null,null,null,null,null,null,null,null,null,null,null,null,null,null,null,null,null,null,null,null,null,null,null,null,null,null,null,null,null,null,null,null,null,null,null,null,null,null,null,null,null,null,null,null,null,null,null,"様式３_I41","融資内容の確認",{"$f":"IF(I42=\"\",\"\",I42)","v":""}]
[null,null,null,null,null,null,null,null,null,null,null,null,null,null,null,null,null,null,null,null,null,null,null,null,null,null,null,null,null,null,null,null,null,null,null,null,null,null,null,null,null,null,null,null,null,null,null,null,null,null,"様式３_I42","導入設備、省エネ効果の確認",{"$f":"IF(I43=\"\",\"\",I43)","v":""}]
["（８）","部署名",null,null,null,null,null,"部署名",null,null,null,null,null,"部署名",null,null,null,null,null,null,null,"（８）","部署名","同上",null,null,null,null,"部署名",null,null,null,null,null,"部署名",null,null,null,null,null,null,null,null,null,null,null,null,null,null,null,"様式３_I44","融資計画書の作成",{"$f":"IF(I44=\"\",\"\",I44)","v":""}]
["執行団体又は国等からの調査への対応","担当者数",null,null,null,null,null,"担当者数",null,null,null,null,null,"担当者数",null,null,null,null,null,null,null,"執行団体又は国等からの調査への対応","担当者数","同上",null,null,null,null,"担当者数",null,null,null,null,null,"担当者数",null,null,null,null,null,null,null,null,null,null,null,null,null,null,null,"様式３_I45","添付資料の準備",""]
[null,"役割等",null,"調査内容の確認",null,null,null,"役割等",null,"調査内容の確認",null,null,null,"役割等",null,"調査内容の確認",null,null,null,null,null,null,"役割等","✓","調査内容の確認",null,null,null,"役割等",null,"調査内容の確認",null,null,null,"役割等",null,"調査内容の確認",null,null,null,null,null,null,null,null,null,null,null,null,null,"様式３_I46","融資計画書に係る書類のとりまとめ",""]
[null,null,null,"必要に応じて、営業店や事業者へ確認",null,null,null,null,null,"必要に応じて、営業店や事業者へ確認",null,null,null,null,null,"必要に応じて、営業店や事業者へ確認",null,null,null,null,null,null,null,"✓","必要に応じて、営業店や事業者へ確認",null,null,null,null,null,"必要に応じて、営業店や事業者へ確認",null,null,null,null,null,"必要に応じて、営業店や事業者へ確認",null,null,null,null,null,null,null,null,null,null,null,null,null,"様式３_I47","融資計画書の最終確認",""]
[null,null,null,"調査内容の回答",null,null,null,null,null,"調査内容の回答",null,null,null,null,null,"調査内容の回答",null,null,null,null,null,null,null,"✓","調査内容の回答",null,null,null,null,null,"調査内容の回答",null,null,null,null,null,"調査内容の回答",null,null,null,null,null,null,null,null,null,null,null,null,null,"様式３_I48","融資計画書の提出",""]
[null,null,null,"その他",null,null,null,null,null,"その他",null,null,null,null,null,"その他",null,null,null,null,null,null,null,null,"その他",null,null,null,null,null,"その他",null,null,null,null,null,"その他",null,null,null,null,null,null,null,null,null,null,null,null,null,"様式３_I49","その他",""]
[null,null,null,null,null,null,null,null,null,null,null,null,null,null,null,null,null,null,null,null,null,null,null,null,null,null,null,null,null,null,null,null,null,null,null,null,null,null,null,null,null,null,null,null,null,null,null,null,null,null,"様式３_I50",null,""]
[null,null,null,null,null,null,null,null,null,null,null,null,null,null,null,null,null,null,null,null,null,null,null,null,null,null,null,null,null,null,null,null,null,null,null,null,null,null,null,null,null,null,null,null,null,null,null,null,null,null,"様式３_O39","（４）部署名3",{"$f":"IF(O40=\"\",\"\",O40)","v":""}]
[null,null,null,null,null,null,null,null,null,null,null,null,null,null,null,null,null,null,null,null,null,null,null,null,null,null,null,null,null,null,null,null,null,null,null,null,null,null,null,null,null,null,null,null,null,null,null,null,null,null,"様式３_O40","（４）担当者数3",{"$f":"IF(O41=\"\",\"\",O41)","v":""}]
[null,null,null,null,null,null,null,null,null,null,null,null,null,null,null,null,null,null,null,null,null,null,null,null,null,null,null,null,null,null,null,null,null,null,null,null,null,null,null,null,null,null,null,null,null,null,null,null,null,null,"様式３_O41","融資内容の確認",{"$f":"IF(O42=\"\",\"\",O42)","v":""}]
[null,null,null,null,null,null,null,null,null,null,null,null,null,null,null,null,null,null,null,null,null,null,null,null,null,null,null,null,null,null,null,null,null,null,null,null,null,null,null,null,null,null,null,null,null,null,null,null,null,null,"様式３_O42","導入設備、省エネ効果の確認",{"$f":"IF(O43=\"\",\"\",O43)","v":""}]
[null,null,null,null,null,null,null,null,null,null,null,null,null,null,null,null,null,null,null,null,null,null,null,null,null,null,null,null,null,null,null,null,null,null,null,null,null,null,null,null,null,null,null,null,null,null,null,null,null,null,"様式３_O44","融資計画書の作成",{"$f":"IF(O44=\"\",\"\",O44)","v":""}]
[null,null,null,null,null,null,null,null,null,null,null,null,null,null,null,null,null,null,null,null,null,null,null,null,null,null,null,null,null,null,null,null,null,null,null,null,null,null,null,null,null,null,null,null,null,null,null,null,null,null,"様式３_O45","添付資料の準備",""]
[null,null,null,null,null,null,null,null,null,null,null,null,null,null,null,null,null,null,null,null,null,null,null,null,null,null,null,null,null,null,null,null,null,null,null,null,null,null,null,null,null,null,null,null,null,null,null,null,null,null,"様式３_O46","融資計画書に係る書類のとりまとめ",""]
[null,null,null,null,null,null,null,null,null,null,null,null,null,null,null,null,null,null,null,null,null,null,null,null,null,null,null,null,null,null,null,null,null,null,null,null,null,null,null,null,null,null,null,null,null,null,null,null,null,null,"様式３_O47","融資計画書の最終確認",""]
[null,null,null,null,null,null,null,null,null,null,null,null,null,null,null,null,null,null,null,null,null,null,null,null,null,null,null,null,null,null,null,null,null,null,null,null,null,null,null,null,null,null,null,null,null,null,null,null,null,null,"様式３_O48","融資計画書の提出",""]
[null,null,null,null,null,null,null,null,null,null,null,null,null,null,null,null,null,null,null,null,null,null,null,null,null,null,null,null,null,null,null,null,null,null,null,null,null,null,null,null,null,null,null,null,null,null,null,null,null,null,"様式３_O49","その他",""]
[null,null,null,null,null,null,null,null,null,null,null,null,null,null,null,null,null,null,null,null,null,null,null,null,null,null,null,null,null,null,null,null,null,null,null,null,null,null,null,null,null,null,null,null,null,null,null,null,null,null,"様式３_O50",null,""]
[null,null,null,null,null,null,null,null,null,null,null,null,null,null,null,null,null,null,null,null,null,null,null,null,null,null,null,null,null,null,null,null,null,null,null,null,null,null,null,null,null,null,null,null,null,null,null,null,null,null,"様式３_C52","（５）部署名1",{"$f":"IF(C52=\"\",\"\",C52)","v":""}]
[null,null,null,null,null,null,null,null,null,null,null,null,null,null,null,null,null,null,null,null,null,null,null,null,null,null,null,null,null,null,null,null,null,null,null,null,null,null,null,null,null,null,null,null,null,null,null,null,null,null,"様式３_C53","（５）担当者数1",""]
[null,null,null,null,null,null,null,null,null,null,null,null,null,null,null,null,null,null,null,null,null,null,null,null,null,null,null,null,null,null,null,null,null,null,null,null,null,null,null,null,null,null,null,null,null,null,null,null,null,null,"様式３_C54","融資内容の確認",""]
[null,null,null,null,null,null,null,null,null,null,null,null,null,null,null,null,null,null,null,null,null,null,null,null,null,null,null,null,null,null,null,null,null,null,null,null,null,null,null,null,null,null,null,null,null,null,null,null,null,null,"様式３_C55","交付申請書の作成",""]
[null,null,null,null,null,null,null,null,null,null,null,null,null,null,null,null,null,null,null,null,null,null,null,null,null,null,null,null,null,null,null,null,null,null,null,null,null,null,null,null,null,null,null,null,null,null,null,null,null,null,"様式３_C56","交付申請書に係る書類のとりまとめ",""]
[null,null,null,null,null,null,null,null,null,null,null,null,null,null,null,null,null,null,null,null,null,null,null,null,null,null,null,null,null,null,null,null,null,null,null,null,null,null,null,null,null,null,null,null,null,null,null,null,null,null,"様式３_C57","交付申請書の最終確認",""]
[null,null,null,null,null,null,null,null,null,null,null,null,null,null,null,null,null,null,null,null,null,null,null,null,null,null,null,null,null,null,null,null,null,null,null,null,null,null,null,null,null,null,null,null,null,null,null,null,null,null,"様式３_C58","交付申請書の提出",""]
[null,null,null,null,null,null,null,null,null,null,null,null,null,null,null,null,null,null,null,null,null,null,null,null,null,null,null,null,null,null,null,null,null,null,null,null,null,null,null,null,null,null,null,null,null,null,null,null,null,null,"様式３_C59","その他",""]
[null,null,null,null,null,null,null,null,null,null,null,null,null,null,null,null,null,null,null,null,null,null,null,null,null,null,null,null,null,null,null,null,null,null,null,null,null,null,null,null,null,null,null,null,null,null,null,null,null,null,"様式３_C60",null,""]
[null,null,null,null,null,null,null,null,null,null,null,null,null,null,null,null,null,null,null,null,null,null,null,null,null,null,null,null,null,null,null,null,null,null,null,null,null,null,null,null,null,null,null,null,null,null,null,null,null,null,"様式３_I52","（５）部署名2",{"$f":"IF(I52=\"\",\"\",I52)","v":""}]
[null,null,null,null,null,null,null,null,null,null,null,null,null,null,null,null,null,null,null,null,null,null,null,null,null,null,null,null,null,null,null,null,null,null,null,null,null,null,null,null,null,null,null,null,null,null,null,null,null,null,"様式３_I53","（５）担当者数2",""]
[null,null,null,null,null,null,null,null,null,null,null,null,null,null,null,null,null,null,null,null,null,null,null,null,null,null,null,null,null,null,null,null,null,null,null,null,null,null,null,null,null,null,null,null,null,null,null,null,null,null,"様式３_I54","融資内容の確認",""]
[null,null,null,null,null,null,null,null,null,null,null,null,null,null,null,null,null,null,null,null,null,null,null,null,null,null,null,null,null,null,null,null,null,null,null,null,null,null,null,null,null,null,null,null,null,null,null,null,null,null,"様式３_I55","交付申請書の作成",""]
[null,null,null,null,null,null,null,null,null,null,null,null,null,null,null,null,null,null,null,null,null,null,null,null,null,null,null,null,null,null,null,null,null,null,null,null,null,null,null,null,null,null,null,null,null,null,null,null,null,null,"様式３_I56","交付申請書に係る書類のとりまとめ",""]
[null,null,null,null,null,null,null,null,null,null,null,null,null,null,null,null,null,null,null,null,null,null,null,null,null,null,null,null,null,null,null,null,null,null,null,null,null,null,null,null,null,null,null,null,null,null,null,null,null,null,"様式３_I57","交付申請書の最終確認",""]
[null,null,null,null,null,null,null,null,null,null,null,null,null,null,null,null,null,null,null,null,null,null,null,null,null,null,null,null,null,null,null,null,null,null,null,null,null,null,null,null,null,null,null,null,null,null,null,null,null,null,"様式３_I58","交付申請書の提出",""]
[null,null,null,null,null,null,null,null,null,null,null,null,null,null,null,null,null,null,null,null,null,null,null,null,null,null,null,null,null,null,null,null,null,null,null,null,null,null,null,null,null,null,null,null,null,null,null,null,null,null,"様式３_I59","その他",""]
[null,null,null,null,null,null,null,null,null,null,null,null,null,null,null,null,null,null,null,null,null,null,null,null,null,null,null,null,null,null,null,null,null,null,null,null,null,null,null,null,null,null,null,null,null,null,null,null,null,null,"様式３_I60",null,""]
[null,null,null,null,null,null,null,null,null,null,null,null,null,null,null,null,null,null,null,null,null,null,null,null,null,null,null,null,null,null,null,null,null,null,null,null,null,null,null,null,null,null,null,null,null,null,null,null,null,null,"様式３_O52","（５）部署名3",{"$f":"IF(O52=\"\",\"\",O52)","v":""}]
[null,null,null,null,null,null,null,null,null,null,null,null,null,null,null,null,null,null,null,null,null,null,null,null,null,null,null,null,null,null,null,null,null,null,null,null,null,null,null,null,null,null,null,null,null,null,null,null,null,null,"様式３_O53","（５）担当者数3",""]
[null,null,null,null,null,null,null,null,null,null,null,null,null,null,null,null,null,null,null,null,null,null,null,null,null,null,null,null,null,null,null,null,null,null,null,null,null,null,null,null,null,null,null,null,null,null,null,null,null,null,"様式３_O54","融資内容の確認",""]
[null,null,null,null,null,null,null,null,null,null,null,null,null,null,null,null,null,null,null,null,null,null,null,null,null,null,null,null,null,null,null,null,null,null,null,null,null,null,null,null,null,null,null,null,null,null,null,null,null,null,"様式３_O55","交付申請書の作成",""]
[null,null,null,null,null,null,null,null,null,null,null,null,null,null,null,null,null,null,null,null,null,null,null,null,null,null,null,null,null,null,null,null,null,null,null,null,null,null,null,null,null,null,null,null,null,null,null,null,null,null,"様式３_O56","交付申請書に係る書類のとりまとめ",""]
[null,null,null,null,null,null,null,null,null,null,null,null,null,null,null,null,null,null,null,null,null,null,null,null,null,null,null,null,null,null,null,null,null,null,null,null,null,null,null,null,null,null,null,null,null,null,null,null,null,null,"様式３_O57","交付申請書の最終確認",""]
[null,null,null,null,null,null,null,null,null,null,null,null,null,null,null,null,null,null,null,null,null,null,null,null,null,null,null,null,null,null,null,null,null,null,null,null,null,null,null,null,null,null,null,null,null,null,null,null,null,null,"様式３_O58","交付申請書の提出",""]
[null,null,null,null,null,null,null,null,null,null,null,null,null,null,null,null,null,null,null,null,null,null,null,null,null,null,null,null,null,null,null,null,null,null,null,null,null,null,null,null,null,null,null,null,null,null,null,null,null,null,"様式３_O59","その他",""]
[null,null,null,null,null,null,null,null,null,null,null,null,null,null,null,null,null,null,null,null,null,null,null,null,null,null,null,null,null,null,null,null,null,null,null,null,null,null,null,null,null,null,null,null,null,null,null,null,null,null,"様式３_O60",null,""]
[null,null,null,null,null,null,null,null,null,null,null,null,null,null,null,null,null,null,null,null,null,null,null,null,null,null,null,null,null,null,null,null,null,null,null,null,null,null,null,null,null,null,null,null,null,null,null,null,null,null,"様式３_C62","（６）部署名1",{"$f":"IF(C62=\"\",\"\",C62)","v":""}]
[null,null,null,null,null,null,null,null,null,null,null,null,null,null,null,null,null,null,null,null,null,null,null,null,null,null,null,null,null,null,null,null,null,null,null,null,null,null,null,null,null,null,null,null,null,null,null,null,null,null,"様式３_C63","（６）担当者数1",""]
[null,null,null,null,null,null,null,null,null,null,null,null,null,null,null,null,null,null,null,null,null,null,null,null,null,null,null,null,null,null,null,null,null,null,null,null,null,null,null,null,null,null,null,null,null,null,null,null,null,null,"様式３_C64","営業店の資金使途確認結果の確認・管理",""]
[null,null,null,null,null,null,null,null,null,null,null,null,null,null,null,null,null,null,null,null,null,null,null,null,null,null,null,null,null,null,null,null,null,null,null,null,null,null,null,null,null,null,null,null,null,null,null,null,null,null,"様式３_C65","資金トレース（支払先への資金還流確認）",""]
[null,null,null,null,null,null,null,null,null,null,null,null,null,null,null,null,null,null,null,null,null,null,null,null,null,null,null,null,null,null,null,null,null,null,null,null,null,null,null,null,null,null,null,null,null,null,null,null,null,null,"様式３_C66","その他",""]
[null,null,null,null,null,null,null,null,null,null,null,null,null,null,null,null,null,null,null,null,null,null,null,null,null,null,null,null,null,null,null,null,null,null,null,null,null,null,null,null,null,null,null,null,null,null,null,null,null,null,"様式３_C67",null,""]
[null,null,null,null,null,null,null,null,null,null,null,null,null,null,null,null,null,null,null,null,null,null,null,null,null,null,null,null,null,null,null,null,null,null,null,null,null,null,null,null,null,null,null,null,null,null,null,null,null,null,"様式３_I62","（６）部署名2",{"$f":"IF(I62=\"\",\"\",I62)","v":""}]
[null,null,null,null,null,null,null,null,null,null,null,null,null,null,null,null,null,null,null,null,null,null,null,null,null,null,null,null,null,null,null,null,null,null,null,null,null,null,null,null,null,null,null,null,null,null,null,null,null,null,"様式３_I63","（６）担当者数2",""]
[null,null,null,null,null,null,null,null,null,null,null,null,null,null,null,null,null,null,null,null,null,null,null,null,null,null,null,null,null,null,null,null,null,null,null,null,null,null,null,null,null,null,null,null,null,null,null,null,null,null,"様式３_I64","営業店の資金使途確認結果の確認・管理",""]
[null,null,null,null,null,null,null,null,null,null,null,null,null,null,null,null,null,null,null,null,null,null,null,null,null,null,null,null,null,null,null,null,null,null,null,null,null,null,null,null,null,null,null,null,null,null,null,null,null,null,"様式３_I65","資金トレース（支払先への資金還流確認）",""]
[null,null,null,null,null,null,null,null,null,null,null,null,null,null,null,null,null,null,null,null,null,null,null,null,null,null,null,null,null,null,null,null,null,null,null,null,null,null,null,null,null,null,null,null,null,null,null,null,null,null,"様式３_I66","その他",""]
[null,null,null,null,null,null,null,null,null,null,null,null,null,null,null,null,null,null,null,null,null,null,null,null,null,null,null,null,null,null,null,null,null,null,null,null,null,null,null,null,null,null,null,null,null,null,null,null,null,null,"様式３_I67",null,""]
[null,null,null,null,null,null,null,null,null,null,null,null,null,null,null,null,null,null,null,null,null,null,null,null,null,null,null,null,null,null,null,null,null,null,null,null,null,null,null,null,null,null,null,null,null,null,null,null,null,null,"様式３_O62","（６）部署名3",{"$f":"IF(O62=\"\",\"\",O62)","v":""}]
[null,null,null,null,null,null,null,null,null,null,null,null,null,null,null,null,null,null,null,null,null,null,null,null,null,null,null,null,null,null,null,null,null,null,null,null,null,null,null,null,null,null,null,null,null,null,null,null,null,null,"様式３_O63","（６）担当者数3",""]
[null,null,null,null,null,null,null,null,null,null,null,null,null,null,null,null,null,null,null,null,null,null,null,null,null,null,null,null,null,null,null,null,null,null,null,null,null,null,null,null,null,null,null,null,null,null,null,null,null,null,"様式３_O64","営業店の資金使途確認結果の確認・管理",""]
[null,null,null,null,null,null,null,null,null,null,null,null,null,null,null,null,null,null,null,null,null,null,null,null,null,null,null,null,null,null,null,null,null,null,null,null,null,null,null,null,null,null,null,null,null,null,null,null,null,null,"様式３_O65","資金トレース（支払先への資金還流確認）",""]
[null,null,null,null,null,null,null,null,null,null,null,null,null,null,null,null,null,null,null,null,null,null,null,null,null,null,null,null,null,null,null,null,null,null,null,null,null,null,null,null,null,null,null,null,null,null,null,null,null,null,"様式３_O66","その他",""]
[null,null,null,null,null,null,null,null,null,null,null,null,null,null,null,null,null,null,null,null,null,null,null,null,null,null,null,null,null,null,null,null,null,null,null,null,null,null,null,null,null,null,null,null,null,null,null,null,null,null,"様式３_O67",null,""]
[null,null,null,null,null,null,null,null,null,null,null,null,null,null,null,null,null,null,null,null,null,null,null,null,null,null,null,null,null,null,null,null,null,null,null,null,null,null,null,null,null,null,null,null,null,null,null,null,null,null,"様式３_C69","（７）部署名1",{"$f":"IF(C69=\"\",\"\",C69)","v":""}]
[null,null,null,null,null,null,null,null,null,null,null,null,null,null,null,null,null,null,null,null,null,null,null,null,null,null,null,null,null,null,null,null,null,null,null,null,null,null,null,null,null,null,null,null,null,null,null,null,null,null,"様式３_C70","（７）担当者数1",{"$f":"IF(C70=\"\",\"\",C70)","v":""}]
[null,null,null,null,null,null,null,null,null,null,null,null,null,null,null,null,null,null,null,null,null,null,null,null,null,null,null,null,null,null,null,null,null,null,null,null,null,null,null,null,null,null,null,null,null,null,null,null,null,null,"様式３_C71","融資内容の確認",{"$f":"IF(C71=\"\",\"\",C71)","v":""}]
[null,null,null,null,null,null,null,null,null,null,null,null,null,null,null,null,null,null,null,null,null,null,null,null,null,null,null,null,null,null,null,null,null,null,null,null,null,null,null,null,null,null,null,null,null,null,null,null,null,null,"様式３_C72","実績報告書の作成",{"$f":"IF(C72=\"\",\"\",C72)","v":""}]
[null,null,null,null,null,null,null,null,null,null,null,null,null,null,null,null,null,null,null,null,null,null,null,null,null,null,null,null,null,null,null,null,null,null,null,null,null,null,null,null,null,null,null,null,null,null,null,null,null,null,"様式３_C73","実績報告書に係る書類のとりまとめ",{"$f":"IF(C73=\"\",\"\",C73)","v":""}]
[null,null,null,null,null,null,null,null,null,null,null,null,null,null,null,null,null,null,null,null,null,null,null,null,null,null,null,null,null,null,null,null,null,null,null,null,null,null,null,null,null,null,null,null,null,null,null,null,null,null,"様式３_C74","実績報告書の提出",{"$f":"IF(C75=\"\",\"\",C75)","v":""}]
[null,null,null,null,null,null,null,null,null,null,null,null,null,null,null,null,null,null,null,null,null,null,null,null,null,null,null,null,null,null,null,null,null,null,null,null,null,null,null,null,null,null,null,null,null,null,null,null,null,null,"様式３_C75","利子補給金請求に係る書類の作成",{"$f":"IF(C76=\"\",\"\",C76)","v":""}]
[null,null,null,null,null,null,null,null,null,null,null,null,null,null,null,null,null,null,null,null,null,null,null,null,null,null,null,null,null,null,null,null,null,null,null,null,null,null,null,null,null,null,null,null,null,null,null,null,null,null,"様式３_C76","利子補給金請求に係る書類のとりまとめ",{"$f":"IF(C77=\"\",\"\",C77)","v":""}]
[null,null,null,null,null,null,null,null,null,null,null,null,null,null,null,null,null,null,null,null,null,null,null,null,null,null,null,null,null,null,null,null,null,null,null,null,null,null,null,null,null,null,null,null,null,null,null,null,null,null,"様式３_C77","利子補給金請求に係る書類の提出",{"$f":"IF(C79=\"\",\"\",C79)","v":""}]
[null,null,null,null,null,null,null,null,null,null,null,null,null,null,null,null,null,null,null,null,null,null,null,null,null,null,null,null,null,null,null,null,null,null,null,null,null,null,null,null,null,null,null,null,null,null,null,null,null,null,"様式３_C78","その他",""]
[null,null,null,null,null,null,null,null,null,null,null,null,null,null,null,null,null,null,null,null,null,null,null,null,null,null,null,null,null,null,null,null,null,null,null,null,null,null,null,null,null,null,null,null,null,null,null,null,null,null,"様式３_C79",null,""]
[null,null,null,null,null,null,null,null,null,null,null,null,null,null,null,null,null,null,null,null,null,null,null,null,null,null,null,null,null,null,null,null,null,null,null,null,null,null,null,null,null,null,null,null,null,null,null,null,null,null,"様式３_I69","（７）部署名2",{"$f":"IF(I69=\"\",\"\",I69)","v":""}]
[null,null,null,null,null,null,null,null,null,null,null,null,null,null,null,null,null,null,null,null,null,null,null,null,null,null,null,null,null,null,null,null,null,null,null,null,null,null,null,null,null,null,null,null,null,null,null,null,null,null,"様式３_I70","（７）担当者数2",{"$f":"IF(I70=\"\",\"\",I70)","v":""}]
[null,null,null,null,null,null,null,null,null,null,null,null,null,null,null,null,null,null,null,null,null,null,null,null,null,null,null,null,null,null,null,null,null,null,null,null,null,null,null,null,null,null,null,null,null,null,null,null,null,null,"様式３_I71","融資内容の確認",{"$f":"IF(I71=\"\",\"\",I71)","v":""}]
[null,null,null,null,null,null,null,null,null,null,null,null,null,null,null,null,null,null,null,null,null,null,null,null,null,null,null,null,null,null,null,null,null,null,null,null,null,null,null,null,null,null,null,null,null,null,null,null,null,null,"様式３_I72","実績報告書の作成",{"$f":"IF(I72=\"\",\"\",I72)","v":""}]
[null,null,null,null,null,null,null,null,null,null,null,null,null,null,null,null,null,null,null,null,null,null,null,null,null,null,null,null,null,null,null,null,null,null,null,null,null,null,null,null,null,null,null,null,null,null,null,null,null,null,"様式３_I73","実績報告書に係る書類のとりまとめ",{"$f":"IF(I73=\"\",\"\",I73)","v":""}]
[null,null,null,null,null,null,null,null,null,null,null,null,null,null,null,null,null,null,null,null,null,null,null,null,null,null,null,null,null,null,null,null,null,null,null,null,null,null,null,null,null,null,null,null,null,null,null,null,null,null,"様式３_I74","実績報告書の提出",{"$f":"IF(I75=\"\",\"\",I75)","v":""}]
[null,null,null,null,null,null,null,null,null,null,null,null,null,null,null,null,null,null,null,null,null,null,null,null,null,null,null,null,null,null,null,null,null,null,null,null,null,null,null,null,null,null,null,null,null,null,null,null,null,null,"様式３_I75","利子補給金請求に係る書類の作成",{"$f":"IF(I76=\"\",\"\",I76)","v":""}]
[null,null,null,null,null,null,null,null,null,null,null,null,null,null,null,null,null,null,null,null,null,null,null,null,null,null,null,null,null,null,null,null,null,null,null,null,null,null,null,null,null,null,null,null,null,null,null,null,null,null,"様式３_I76","利子補給金請求に係る書類のとりまとめ",{"$f":"IF(I77=\"\",\"\",I77)","v":""}]
[null,null,null,null,null,null,null,null,null,null,null,null,null,null,null,null,null,null,null,null,null,null,null,null,null,null,null,null,null,null,null,null,null,null,null,null,null,null,null,null,null,null,null,null,null,null,null,null,null,null,"様式３_I77","利子補給金請求に係る書類の提出",{"$f":"IF(I79=\"\",\"\",I79)","v":""}]
[null,null,null,null,null,null,null,null,null,null,null,null,null,null,null,null,null,null,null,null,null,null,null,null,null,null,null,null,null,null,null,null,null,null,null,null,null,null,null,null,null,null,null,null,null,null,null,null,null,null,"様式３_I78","その他",""]
[null,null,null,null,null,null,null,null,null,null,null,null,null,null,null,null,null,null,null,null,null,null,null,null,null,null,null,null,null,null,null,null,null,null,null,null,null,null,null,null,null,null,null,null,null,null,null,null,null,null,"様式３_I79",null,""]
[null,null,null,null,null,null,null,null,null,null,null,null,null,null,null,null,null,null,null,null,null,null,null,null,null,null,null,null,null,null,null,null,null,null,null,null,null,null,null,null,null,null,null,null,null,null,null,null,null,null,"様式３_O69","（７）部署名3",{"$f":"IF(O69=\"\",\"\",O69)","v":""}]
[null,null,null,null,null,null,null,null,null,null,null,null,null,null,null,null,null,null,null,null,null,null,null,null,null,null,null,null,null,null,null,null,null,null,null,null,null,null,null,null,null,null,null,null,null,null,null,null,null,null,"様式３_O70","（７）担当者数3",{"$f":"IF(O70=\"\",\"\",O70)","v":""}]
[null,null,null,null,null,null,null,null,null,null,null,null,null,null,null,null,null,null,null,null,null,null,null,null,null,null,null,null,null,null,null,null,null,null,null,null,null,null,null,null,null,null,null,null,null,null,null,null,null,null,"様式３_O71","融資内容の確認",{"$f":"IF(O71=\"\",\"\",O71)","v":""}]
[null,null,null,null,null,null,null,null,null,null,null,null,null,null,null,null,null,null,null,null,null,null,null,null,null,null,null,null,null,null,null,null,null,null,null,null,null,null,null,null,null,null,null,null,null,null,null,null,null,null,"様式３_O72","実績報告書の作成",{"$f":"IF(O72=\"\",\"\",O72)","v":""}]
[null,null,null,null,null,null,null,null,null,null,null,null,null,null,null,null,null,null,null,null,null,null,null,null,null,null,null,null,null,null,null,null,null,null,null,null,null,null,null,null,null,null,null,null,null,null,null,null,null,null,"様式３_O73","実績報告書に係る書類のとりまとめ",{"$f":"IF(O73=\"\",\"\",O73)","v":""}]
[null,null,null,null,null,null,null,null,null,null,null,null,null,null,null,null,null,null,null,null,null,null,null,null,null,null,null,null,null,null,null,null,null,null,null,null,null,null,null,null,null,null,null,null,null,null,null,null,null,null,"様式３_O74","実績報告書の提出",{"$f":"IF(O75=\"\",\"\",O75)","v":""}]
[null,null,null,null,null,null,null,null,null,null,null,null,null,null,null,null,null,null,null,null,null,null,null,null,null,null,null,null,null,null,null,null,null,null,null,null,null,null,null,null,null,null,null,null,null,null,null,null,null,null,"様式３_O75","利子補給金請求に係る書類の作成",{"$f":"IF(O76=\"\",\"\",O76)","v":""}]
[null,null,null,null,null,null,null,null,null,null,null,null,null,null,null,null,null,null,null,null,null,null,null,null,null,null,null,null,null,null,null,null,null,null,null,null,null,null,null,null,null,null,null,null,null,null,null,null,null,null,"様式３_O76","利子補給金請求に係る書類のとりまとめ",{"$f":"IF(O77=\"\",\"\",O77)","v":""}]
[null,null,null,null,null,null,null,null,null,null,null,null,null,null,null,null,null,null,null,null,null,null,null,null,null,null,null,null,null,null,null,null,null,null,null,null,null,null,null,null,null,null,null,null,null,null,null,null,null,null,"様式３_O77","利子補給金請求に係る書類の提出",{"$f":"IF(O79=\"\",\"\",O79)","v":""}]
[null,null,null,null,null,null,null,null,null,null,null,null,null,null,null,null,null,null,null,null,null,null,null,null,null,null,null,null,null,null,null,null,null,null,null,null,null,null,null,null,null,null,null,null,null,null,null,null,null,null,"様式３_O78","その他",""]
[null,null,null,null,null,null,null,null,null,null,null,null,null,null,null,null,null,null,null,null,null,null,null,null,null,null,null,null,null,null,null,null,null,null,null,null,null,null,null,null,null,null,null,null,null,null,null,null,null,null,"様式３_O79",null,""]
[null,null,null,null,null,null,null,null,null,null,null,null,null,null,null,null,null,null,null,null,null,null,null,null,null,null,null,null,null,null,null,null,null,null,null,null,null,null,null,null,null,null,null,null,null,null,null,null,null,null,"様式３_C81","（８）部署名1",{"$f":"IF(C83=\"\",\"\",C83)","v":""}]
[null,null,null,null,null,null,null,null,null,null,null,null,null,null,null,null,null,null,null,null,null,null,null,null,null,null,null,null,null,null,null,null,null,null,null,null,null,null,null,null,null,null,null,null,null,null,null,null,null,null,"様式３_C82","（８）担当者数1",{"$f":"IF(C84=\"\",\"\",C84)","v":""}]
[null,null,null,null,null,null,null,null,null,null,null,null,null,null,null,null,null,null,null,null,null,null,null,null,null,null,null,null,null,null,null,null,null,null,null,null,null,null,null,null,null,null,null,null,null,null,null,null,null,null,"様式３_C83","調査内容の確認",""]
[null,null,null,null,null,null,null,null,null,null,null,null,null,null,null,null,null,null,null,null,null,null,null,null,null,null,null,null,null,null,null,null,null,null,null,null,null,null,null,null,null,null,null,null,null,null,null,null,null,null,"様式３_C84","必要に応じて、営業店や事業者へ確認",""]
[null,null,null,null,null,null,null,null,null,null,null,null,null,null,null,null,null,null,null,null,null,null,null,null,null,null,null,null,null,null,null,null,null,null,null,null,null,null,null,null,null,null,null,null,null,null,null,null,null,null,"様式３_C85","調査内容の回答",""]
[null,null,null,null,null,null,null,null,null,null,null,null,null,null,null,null,null,null,null,null,null,null,null,null,null,null,null,null,null,null,null,null,null,null,null,null,null,null,null,null,null,null,null,null,null,null,null,null,null,null,"様式３_C86","その他",""]
[null,null,null,null,null,null,null,null,null,null,null,null,null,null,null,null,null,null,null,null,null,null,null,null,null,null,null,null,null,null,null,null,null,null,null,null,null,null,null,null,null,null,null,null,null,null,null,null,null,null,"様式３_C87",null,""]
[null,null,null,null,null,null,null,null,null,null,null,null,null,null,null,null,null,null,null,null,null,null,null,null,null,null,null,null,null,null,null,null,null,null,null,null,null,null,null,null,null,null,null,null,null,null,null,null,null,null,"様式３_I81","（８）部署名2",{"$f":"IF(I83=\"\",\"\",I83)","v":""}]
[null,null,null,null,null,null,null,null,null,null,null,null,null,null,null,null,null,null,null,null,null,null,null,null,null,null,null,null,null,null,null,null,null,null,null,null,null,null,null,null,null,null,null,null,null,null,null,null,null,null,"様式３_I82","（８）担当者数2",{"$f":"IF(I84=\"\",\"\",I84)","v":""}]
[null,null,null,null,null,null,null,null,null,null,null,null,null,null,null,null,null,null,null,null,null,null,null,null,null,null,null,null,null,null,null,null,null,null,null,null,null,null,null,null,null,null,null,null,null,null,null,null,null,null,"様式３_I83","調査内容の確認",""]
[null,null,null,null,null,null,null,null,null,null,null,null,null,null,null,null,null,null,null,null,null,null,null,null,null,null,null,null,null,null,null,null,null,null,null,null,null,null,null,null,null,null,null,null,null,null,null,null,null,null,"様式３_I84","必要に応じて、営業店や事業者へ確認",""]
[null,null,null,null,null,null,null,null,null,null,null,null,null,null,null,null,null,null,null,null,null,null,null,null,null,null,null,null,null,null,null,null,null,null,null,null,null,null,null,null,null,null,null,null,null,null,null,null,null,null,"様式３_I85","調査内容の回答",""]
[null,null,null,null,null,null,null,null,null,null,null,null,null,null,null,null,null,null,null,null,null,null,null,null,null,null,null,null,null,null,null,null,null,null,null,null,null,null,null,null,null,null,null,null,null,null,null,null,null,null,"様式３_I86","その他",""]
[null,null,null,null,null,null,null,null,null,null,null,null,null,null,null,null,null,null,null,null,null,null,null,null,null,null,null,null,null,null,null,null,null,null,null,null,null,null,null,null,null,null,null,null,null,null,null,null,null,null,"様式３_I87",null,""]
[null,null,null,null,null,null,null,null,null,null,null,null,null,null,null,null,null,null,null,null,null,null,null,null,null,null,null,null,null,null,null,null,null,null,null,null,null,null,null,null,null,null,null,null,null,null,null,null,null,null,"様式３_O81","（８）部署名3",{"$f":"IF(O83=\"\",\"\",O83)","v":""}]
[null,null,null,null,null,null,null,null,null,null,null,null,null,null,null,null,null,null,null,null,null,null,null,null,null,null,null,null,null,null,null,null,null,null,null,null,null,null,null,null,null,null,null,null,null,null,null,null,null,null,"様式３_O82","（８）担当者数3",{"$f":"IF(O84=\"\",\"\",O84)","v":""}]
[null,null,null,null,null,null,null,null,null,null,null,null,null,null,null,null,null,null,null,null,null,null,null,null,null,null,null,null,null,null,null,null,null,null,null,null,null,null,null,null,null,null,null,null,null,null,null,null,null,null,"様式３_O83","調査内容の確認",""]
[null,null,null,null,null,null,null,null,null,null,null,null,null,null,null,null,null,null,null,null,null,null,null,null,null,null,null,null,null,null,null,null,null,null,null,null,null,null,null,null,null,null,null,null,null,null,null,null,null,null,"様式３_O84","必要に応じて、営業店や事業者へ確認",""]
[null,null,null,null,null,null,null,null,null,null,null,null,null,null,null,null,null,null,null,null,null,null,null,null,null,null,null,null,null,null,null,null,null,null,null,null,null,null,null,null,null,null,null,null,null,null,null,null,null,null,"様式３_O85","調査内容の回答",""]
[null,null,null,null,null,null,null,null,null,null,null,null,null,null,null,null,null,null,null,null,null,null,null,null,null,null,null,null,null,null,null,null,null,null,null,null,null,null,null,null,null,null,null,null,null,null,null,null,null,null,"様式３_O86","その他",""]
[null,null,null,null,null,null,null,null,null,null,null,null,null,null,null,null,null,null,null,null,null,null,null,null,null,null,null,null,null,null,null,null,null,null,null,null,null,null,null,null,null,null,null,null,null,null,null,null,null,null,"様式３_O87",null,""]

{"sheet":"様式４","index":5,"n_rows":5,"n_cols":12,"rows_kept":5,"cut":false,"hidden":false,"merged":[[4,0,4,8],[6,0,51,8],[4,11,4,19],[6,11,51,19],[2,6,2,9]]}
[]
["（様式４）",null,null,null,null,null,null,null,null,null,null,"（様式４）"]
[null,null,null,null,null,null,{"$f":"IF(AND(様式１!AL42=1,様式１!AL43=0),\"※本様式の入力は省略可能です\",\"\")","v":""}]
[]
["３．民間団体等の省エネルギー取組に対する支援体制・方法",null,null,null,null,null,null,null,null,null,null,{"$f":"A5","v":"３．民間団体等の省エネルギー取組に対する支援体制・方法"}]

{"sheet":"様式５","index":6,"n_rows":12,"n_cols":53,"rows_kept":12,"cut":false,"hidden":false,"merged":[[11,11,11,12],[11,13,11,19],[9,2,9,8],[8,2,8,8],[8,0,8,1],[9,0,9,1],[10,2,10,8],[10,0,10,1],[11,2,11,8],[11,0,11,1],[8,11,8,12],[8,13,8,19],[9,11,9,12],[9,13,9,19],[10,11,10,12],[10,13,10,19]]}
[]
["（様式５）",null,null,null,null,null,null,null,null,null,null,{"$f":"A2","v":"（様式５）"}]
[]
[]
["４．公開する本事業に関する窓口の掲載情報",null,null,null,null,null,null,null,null,null,null,{"$f":"A5","v":"４．公開する本事業に関する窓口の掲載情報"}]
[]
[]
[]
["金融機関名",null,null,null,null,null,null,null,null,null,null,"金融機関名",null,"株式会社〇〇銀行",null,null,null,null,null,null,null,null,null,null,null,null,null,null,null,null,null,null,null,null,null,null,null,null,null,null,null,null,null,null,null,null,null,null,null,null,"様式５_C9","金融機関名",{"$f":"IF(C9=\"\",\"\",C9)","v":""}]
["担当部署",null,null,null,null,null,null,null,null,null,null,"担当部署",null,"〇〇〇〇部　〇〇〇〇課",null,null,null,null,null,null,null,null,null,null,null,null,null,null,null,null,null,null,null,null,null,null,null,null,null,null,null,null,null,null,null,null,null,null,null,null,"様式５_C10","担当部署",{"$f":"IF(C10=\"\",\"\",C10)","v":""}]
["担当部署\n電話番号",null,null,null,null,null,null,null,null,null,null,"担当部署\n電話番号",null,"〇〇-〇〇〇〇-〇〇〇〇",null,null,null,null,null,null,null,null,null,null,null,null,null,null,null,null,null,null,null,null,null,null,null,null,null,null,null,null,null,null,null,null,null,null,null,null,"様式５_C11","担当部署\n電話番号",{"$f":"IF(C11=\"\",\"\",C11)","v":""}]
["金融機関ホームページ\nＵＲＬ",null,null,null,null,null,null,null,null,null,null,"金融機関ホームページ\nＵＲＬ",null,"https://www.○○○○○○○○○○○○○",null,null,null,null,null,null,null,null,null,null,null,null,null,null,null,null,null,null,null,null,null,null,null,null,null,null,null,null,null,null,null,null,null,null,null,null,"様式５_C12","金融機関ホームページＵＲＬ",{"$f":"IF(C12=\"\",\"\",C12)","v":""}]

{"sheet":"様式６","index":7,"n_rows":33,"n_cols":20,"rows_kept":33,"cut":false,"hidden":false,"merged":[[6,19,7,19],[32,11,37,19],[32,0,37,8],[6,11,7,11],[6,12,7,12],[6,13,6,16],[6,17,7,17],[6,18,7,18],[6,0,7,0],[6,1,7,1],[6,2,6,5],[6,6,7,6],[6,7,7,7],[6,8,7,8]]}
[]
["（様式６）",null,null,null,null,null,null,null,null,null,null,{"$f":"A2","v":"（様式６）"}]
[]
[]
["５．役員名簿（金融機関）",null,{"$f":"IF(COUNTA(A9:A29)>0,IF(MIN(COUNTA(B9:I9:B29:I29))<8,\"入力していない列があります\",\"\"),\"\")","v":""},null,null,null,null,null,null,null,null,{"$f":"A5","v":"５．役員名簿（金融機関）"}]
[]
["氏名（ｶﾅ）","氏名（漢字）","生年月日",null,null,null,"性別","会社名","役職名",null,null,{"$f":"A7","v":"氏名（ｶﾅ）"},{"$f":"B7","v":"氏名（漢字）"},{"$f":"C7","v":"生年月日"},null,null,null,{"$f":"G7","v":"性別"},{"$f":"H7","v":"会社名"},{"$f":"I7","v":"役職名"}]
[null,null,"和暦","年","月","日",null,null,null,null,null,null,null,{"$f":"C8","v":"和暦"},{"$f":"D8","v":"年"},"月","日"]
[null,null,null,null,null,null,null,null,null,null,null,"○○○ ○○○","○○　○○","S","30","03","04","M","株式会社○○銀行","代表取締役"]
[null,null,null,null,null,null,null,null,null,null,null,"△△△△ △△△△","△△△　△△","S","40","01","10","M","株式会社○○銀行","取締役"]
[null,null,null,null,null,null,null,null,null,null,null,"□□ □□□","□　□□","S","45","12","12","M","株式会社○○銀行","取締役"]
[]
[]
[]
[]
[]
[]
[]
[]
[]
[]
[]
[]
[]
[]
[]
[]
[]
[]
[null,null,"T",null,null,null,"M"]
[null,null,"S",null,null,null,"F"]
[null,null,"H"]
["（注）\n　役員名簿については、氏名カナ（半角、姓と名の間も半角で1マス空け）、氏名漢字（全角、姓と名の間も全角で1マス空け）、生年月日（半角で大正はT、昭和はS、平成はH、数字は2桁半角）、性別（半角で男性はM、女性はF）、会社名及び役職名を入力すること。\n　また、外国人については、氏名漢字欄はアルファベットを、氏名カナ欄は当該アルファベットのカナ読みを入力すること。",null,null,null,null,null,null,null,null,null,null,{"$f":"A33","v":"（注）\n　役員名簿については、氏名カナ（半角、姓と名の間も半角で1マス空け）、氏名漢字（全角、姓と名の間も全角で1マス空け）、生年月日（半角で大正はT、昭和はS、平成はH、数字は2桁半角）、性別（半角で男性はM、女性はF）、会社名及び役職名を入力すること。\n　また、外国人については、氏名漢字欄はアルファベットを、氏名カナ欄は当該アルファベットのカナ読みを入力すること。"}]

{"sheet":"様式７","index":8,"n_rows":26,"n_cols":26,"rows_kept":26,"cut":false,"hidden":false,"merged":[[24,1,24,10],[25,1,25,10],[22,1,22,10],[23,1,23,10],[9,1,9,10],[18,1,18,10],[19,1,19,10],[20,1,20,10],[21,1,21,10],[12,1,12,10],[13,1,13,10],[14,1,14,10],[15,1,15,10],[16,1,16,10],[17,1,17,10],[10,1,10,10],[11,1,11,10],[9,15,9,24],[10,15,10,24],[11,15,11,24],[12,15,12,24],[13,15,13,24],[14,15,14,24],[15,15,15,24],[16,15,16,24],[17,15,17,24],[18,15,18,24],[24,15,24,24],[25,15,25,24],[19,15,19,24],[20,15,20,24],[21,15,21,24],[22,15,22,24],[23,15,23,24]]}
[]
["（様式７）",null,null,null,null,null,null,null,null,null,null,null,null,null,"（様式７）"]
[]
[]
["６．指定金融機関の業務（予定）の確認",null,null,null,null,null,null,null,null,null,null,null,null,null,{"$f":"A5","v":"６．指定金融機関の業務（予定）の確認"}]
[]
[]
["指定金融機関 公募要領の１－５（７ページ）に基づき、本事業において以下の業務を行うことを確認しました。",null,null,null,null,null,null,null,null,null,null,null,null,null,{"$f":"A8","v":"指定金融機関 公募要領の１－５（７ページ）に基づき、本事業において以下の業務を行うことを確認しました。"}]
[]
["No","指定金融機関の業務（予定）",null,null,null,null,null,null,null,null,null,"確認",null,null,{"$f":"A10","v":"No"},"指定金融機関の業務（予定）",null,null,null,null,null,null,null,null,null,"確認"]
[1,"利子補給対象事業を検討する利子補給対象事業者に対し、本事業内容・要件について詳細な説明を行うとともに、融資計画書の提出を行う場合には、提出する内容が公募要領の要件を満たしていることを確認し、融資計画書をとりまとめ、ＳＩＩへ提出を行う。",null,null,null,null,null,null,null,null,null,null,null,null,1,"利子補給対象事業を検討する利子補給対象事業者に対し、本事業内容・要件について詳細な説明を行うとともに、融資計画書の提出を行う場合には、提出する内容が公募要領の要件を満たしていることを確認し、融資計画書をとりまとめ、ＳＩＩへ提出を行う。",null,null,null,null,null,null,null,null,null,"✓"]
[2,"融資計画書の不備修正や不足書類の追加など、ＳＩＩの求めに応じて書類審査上必要な対応を速やかに行う。",null,null,null,null,null,null,null,null,null,null,null,null,2,"融資計画書の不備修正や不足書類の追加など、ＳＩＩの求めに応じて書類審査上必要な対応を速やかに行う。",null,null,null,null,null,null,null,null,null,"✓"]
[3,"ＳＩＩより送付する交付（又は不交付）方針決定通知書を受理した後、利子補給対象事業者へ審査結果を速やかに通知する。",null,null,null,null,null,null,null,null,null,null,null,null,3,"ＳＩＩより送付する交付（又は不交付）方針決定通知書を受理した後、利子補給対象事業者へ審査結果を速やかに通知する。",null,null,null,null,null,null,null,null,null,"✓"]
[4,"交付方針決定通知書を受理した後、利子補給対象事業者と金銭消費貸借契約の締結を行う。",null,null,null,null,null,null,null,null,null,null,null,null,4,"交付方針決定通知書を受理した後、利子補給対象事業者と金銭消費貸借契約の締結を行う。",null,null,null,null,null,null,null,null,null,"✓"]
[5,"金銭消費貸借契約を締結した後、交付申請書に係る書類をとりまとめ、ＳＩＩへ提出を行う。",null,null,null,null,null,null,null,null,null,null,null,null,5,"金銭消費貸借契約を締結した後、交付申請書に係る書類をとりまとめ、ＳＩＩへ提出を行う。",null,null,null,null,null,null,null,null,null,"✓"]
[6,"利子補給対象事業者との金銭消費貸借契約に係る取引証憑をＳＩＩが確認できるようにする。",null,null,null,null,null,null,null,null,null,null,null,null,6,"利子補給対象事業者との金銭消費貸借契約に係る取引証憑をＳＩＩが確認できるようにする。",null,null,null,null,null,null,null,null,null,"✓"]
[7,"交付申請書の不備修正や不足書類の追加など、ＳＩＩの求めに応じて書類審査上必要な対応を速やかに行う。",null,null,null,null,null,null,null,null,null,null,null,null,7,"交付申請書の不備修正や不足書類の追加など、ＳＩＩの求めに応じて書類審査上必要な対応を速やかに行う。",null,null,null,null,null,null,null,null,null,"✓"]
[8,"ＳＩＩより送付する交付決定通知書を受理した後、交付対象融資の内容、利子補給対象事業の内容に変更が生じる場合、速やかにＳＩＩに報告し、その指示に従う。",null,null,null,null,null,null,null,null,null,null,null,null,8,"ＳＩＩより送付する交付決定通知書を受理した後、交付対象融資の内容、利子補給対象事業の内容に変更が生じる場合、速やかにＳＩＩに報告し、その指示に従う。",null,null,null,null,null,null,null,null,null,"✓"]
[9,"利子補給対象事業に係る省エネルギー設備又はサービス等の検収・支払、及び使途等の確認を行う。また、利子補給対象事業の実施に係る証憑をＳＩＩからの求めに応じて提出できるよう保管する。",null,null,null,null,null,null,null,null,null,null,null,null,9,"利子補給対象事業に係る省エネルギー設備又はサービス等の検収・支払、及び使途等の確認を行う。また、利子補給対象事業の実施に係る証憑をＳＩＩからの求めに応じて提出できるよう保管する。",null,null,null,null,null,null,null,null,null,"✓"]
[10,"ＳＩＩから利子補給金の概算払を受けようとするときは、概算払請求書を提出する。",null,null,null,null,null,null,null,null,null,null,null,null,10,"ＳＩＩから利子補給金の概算払を受けようとするときは、概算払請求書を提出する。",null,null,null,null,null,null,null,null,null,"✓"]
[11,"実績報告書等に係る書類をとりまとめ、ＳＩＩへ提出を行う。",null,null,null,null,null,null,null,null,null,null,null,null,11,"実績報告書等に係る書類をとりまとめ、ＳＩＩへ提出を行う。",null,null,null,null,null,null,null,null,null,"✓"]
[12,"実績報告書の不備修正や不足書類の追加など、ＳＩＩの求めに応じて書類検査上必要な対応を速やかに行う。必要に応じてＳＩＩが行う現地調査にも対応する。",null,null,null,null,null,null,null,null,null,null,null,null,12,"実績報告書の不備修正や不足書類の追加など、ＳＩＩの求めに応じて書類検査上必要な対応を速やかに行う。必要に応じてＳＩＩが行う現地調査にも対応する。",null,null,null,null,null,null,null,null,null,"✓"]
[13,"ＳＩＩより送付する利子補給金の額の確定通知書を受理した後、利子補給金の精算払請求書を提出（概算払金額と交付確定額が同額の場合は不要）する。",null,null,null,null,null,null,null,null,null,null,null,null,13,"ＳＩＩより送付する利子補給金の額の確定通知書を受理した後、利子補給金の精算払請求書を提出（概算払金額と交付確定額が同額の場合は不要）する。",null,null,null,null,null,null,null,null,null,"✓"]
[14,"利子補給対象事業の完了後、原則として、交付方針決定時の計画省エネルギー効果の達成を確認する。",null,null,null,null,null,null,null,null,null,null,null,null,14,"利子補給対象事業の完了後、原則として、交付方針決定時の計画省エネルギー効果の達成を確認する。",null,null,null,null,null,null,null,null,null,"✓"]
[15,"経済産業省又はＳＩＩから、省エネルギー量や運用実績などの調査依頼があった場合は、速やかに対応する。",null,null,null,null,null,null,null,null,null,null,null,null,15,"経済産業省又はＳＩＩから、省エネルギー量や運用実績などの調査依頼があった場合は、速やかに対応する。",null,null,null,null,null,null,null,null,null,"✓"]
[16,"本事業に関連する資料を、利子補給金の交付を受けた日の属する年度の終了後５年間保存する。ＳＩＩより閲覧及び提出の依頼があった場合は、速やかに対応する。",null,null,null,null,null,null,null,null,null,null,null,null,16,"本事業に関連する資料を、利子補給金の交付を受けた日の属する年度の終了後５年間保存する。ＳＩＩより閲覧及び提出の依頼があった場合は、速やかに対応する。",null,null,null,null,null,null,null,null,null,"✓"]

{"sheet":"変更内容","index":9,"n_rows":101,"n_cols":6,"rows_kept":101,"cut":false,"hidden":true,"merged":[]}
[null,"変更内容"]
[null,"No","シート名","変更内容","変更によるメリット","変更によるデメリット"]
[null,{"$f":"ROW()-2","v":1},"全般"]
[null,2,"様式1"]
[null,3,"様式1"]
[null,4,"様式2"]
[null,5,"様式2"]
[null,6,"様式2"]
[null,7,"様式3"]
[null,8,"様式4"]
[null,9,"様式5"]
[null,10,"様式5"]
[null,11,"様式6"]
[null,12,"様式7"]
[null,13]
[null,14]
[null,15]
[null,16]
[null,17]
[null,18]
[null,19]
[null,20]
[null,21]
[null,22]
[null,23]
[null,24]
[null,25]
[null,26]
[null,27]
[null,28]
[null,29]
[null,30]
[null,31]
[null,32]
[null,{"$f":"ROW()-2","v":33}]
[null,34]
[null,35]
[null,36]
[null,37]
[null,38]
[null,39]
[null,40]
[null,41]
[null,42]
[null,43]
[null,44]
[null,45]
[null,46]
[null,47]
[null,48]
[null,49]
[null,50]
[null,51]
[null,52]
[null,53]
[null,54]
[null,55]
[null,56]
[null,57]
[null,58]
[null,59]
[null,60]
[null,61]
[null,62]
[null,63]
[null,64]
[null,{"$f":"ROW()-2","v":65}]
[null,66]
[null,67]
[null,68]
[null,69]
[null,70]
[null,71]
[null,72]
[null,73]
[null,74]
[null,75]
[null,76]
[null,77]
[null,78]
[null,79]
[null,80]
[null,81]
[null,82]
[null,83]
[null,84]
[null,85]
[null,86]
[null,87]
[null,88]
[null,89]
[null,90]
[null,91]
[null,92]
[null,93]
[null,94]
[null,95]
[null,96]
[null,97]
[null,98]
[null,99]